Cogmind - Beta 12 X4 @@@ ROGUE MODE // 2022.12.21 @ 00:13:16 Player: aperiodic Result: Destroyed by P-80 Master with Gamma Rifle Performance ------------- Evolutions (7) 3500 Regions Visited (38) 7600 Robots Destroyed (515) 2575 Value Destroyed (19024) 19024 Prototype IDs (107) 2140 Alien Tech Used (1) 200 Bonus (5902) 5902 TOTAL SCORE: 40941 Bonus ------- High Alert Combat Kills 2697 Follower Combat Kills 2577 Entered Garrisons 800 Network Hubs Disabled 200 Aligned with FarCom 300 Destroyed Z-Imprinter 1000 Met Zhirov 300 Met Warlord at Base 500 MAIN.C Attacked Warlord 500 Built Enhanced Grunts 300 A7 Reached Mainframe 300 Met R17 at Cetus 500 Hacked Protovariant 500 Friendly Fire -4572 Cogmind --------- Core Integrity 0/1300 Matter 300/300 Energy 99/100 System Corruption 52% Temperature Cool (0) Movement Core (50) Location -3/Testing Parts ------- > --- POWER (2) -------- (None) > --- PROPULSION (5) --- (None) > --- UTILITY (11) ----- (None) > --- WEAPON (3) ------- (None) > --- INVENTORY (5) ---- Heavy Regenerative Plating SHELL Armor Peak State ------------ > --- POWER ------------ Heavy Antimatter Reactor Cooled Multi-Antimatter Reactor > --- PROPULSION ------- Flexi-carbon Leg Flexi-carbon Leg Myomer Leg Antigrav System > --- UTILITY ---------- Armored Scrap Engine High-capacity Storage Unit Wardrone Bay > --- WEAPON ----------- RU-N14's Throwing Claymores v3 Hypervelocity Kinetic Coil Construct/G Vortex Lance > --- INVENTORY -------- Experimental Power Amplifier Experimental Energy Well Experimental Energy Well Experimental Matter Compressor Experimental Core Analyzer Precision Energy Filter Advanced Transmission Jammer Heavy Regenerative Plating SHELL Armor Long-range Tractor Beam Heavy Laser CR-A16's Behemoth Slayer GAL Module [Rating: 199] Favorites ----------- Power Constructs Engine Heavy Ion Engine Power Core Micro Nuclear Core Reactor Constructs Propulsion Light Treads Treads Light Treads Leg Constructs Wheel Wheel Hover Unit Antigrav System Flight Unit Improved VTOL Module Utility High-capacity Storage Unit Device Armored Scrap Engine Storage High-capacity Storage Unit Processor Experimental Optical Array Hackware Hacking Suite Protection Centrium Medium Armor Plating Weapon Constructs Energy Gun Precision Phase Gun Energy Cannon Cooled Plasma Cannon Ballistic Gun Constructs Ballistic Cannon Improved Light Cannon Launcher Long-range Missile Launcher Special Weapon RU-N14's Throwing Claymores v3 Impact Weapon Hammer Slashing Weapon Makeshift Sword Piercing Weapon CR-A16's Pointy Stick Build | -11 -10 -10 -9 -9 -9 -8 -8 -8 -8 -8 -8 -8 -8 -8 -8 -7 -7 -7 -7 -7 -6 -6 -6 -6 -6 -6 -5 -5 -5 -5 -4 -4 -4 -4 -4 -3 -3 -3 ------- Run | Scr Mat Min Mat Min Exi Min Mat Gar Mat Gar Mat Gar Mat Gar Mat Fac Low Low Zio Dee Pro Fac Ext Cet Arc Hub Fac Upp Upp Zhi Pro Fac Upp Upp War Pro Res Tes Slots Evolved 14 | . . . 2 . . . 2 . . . . . . . . 2 . . . . . 2 . . . . 2 . . . . 2 . . . . 2 . Power 1 | . . . . . . . . . . . . . . . . . . . . . . . . . . . . . . . . 1 . . . . . . Propulsion 3 | . . . . . . . 1 . . . . . . . . . . . . . . 1 . . . . . . . . . . . . . . 1 . Utility 9 | . . . 1 . . . 1 . . . . . . . . 2 . . . . . 1 . . . . 2 . . . . 1 . . . . 1 . Weapon 1 | . . . 1 . . . . . . . . . . . . . . . . . . . . . . . . . . . . . . . . . . . Parts Attached 413 | 8 27 11 41 14 1 3 24 22 5 6 1 7 19 14 9 8 2 5 9 27 6 18 12 10 4 2 5 3 2 6 3 25 2 . 8 3 12 29 Power 13 | 1 1 2 1 1 . . 2 1 1 . . . . 1 . . . . . 1 . . . . . . . . . . . . . . . . . 1 Engine 8 | 1 1 1 1 1 . . 2 . 1 . . . . . . . . . . . . . . . . . . . . . . . . . . . . . Core 3 | . . 1 . . . . . 1 . . . . . 1 . . . . . . . . . . . . . . . . . . . . . . . . Reactor 2 | . . . . . . . . . . . . . . . . . . . . 1 . . . . . . . . . . . . . . . . . 1 Propulsion 83 | 2 8 3 9 7 . 2 9 6 1 3 . . 6 . 3 2 1 . . 2 2 4 6 . . . . . . . . . . . . . . 7 Treads 32 | . 2 . 1 . . 2 6 4 1 3 . . 6 . 3 2 1 . . 1 . . . . . . . . . . . . . . . . . . Leg 10 | . . . . . . . . 1 . . . . . . . . . . . . . . 6 . . . . . . . . . . . . . . 3 Wheel 33 | 2 6 3 8 7 . . 3 1 . . . . . . . . . . . . . . . . . . . . . . . . . . . . . 3 Hover 7 | . . . . . . . . . . . . . . . . . . . . 1 2 3 . . . . . . . . . . . . . . . 1 Flight 1 | . . . . . . . . . . . . . . . . . . . . . . 1 . . . . . . . . . . . . . . . . Utility 161 | 2 4 1 10 4 1 . 6 7 1 1 . 1 5 . 2 5 1 . 4 15 2 9 5 5 4 1 4 2 2 6 . 21 2 . 6 2 11 9 Device 67 | 1 . . 3 2 . . . 1 . 1 . . 1 . . 2 . . 1 5 . 2 4 . 2 . 2 1 . 1 . 16 2 . 4 2 7 7 Storage 11 | 1 3 . . . 1 . . 1 . . . . . . 1 . . . . 1 . 1 . . . . . . . 1 . . . . . . 1 . Processor 6 | . . . . . . . . . . . . . . . . 1 . . 1 . . . . . 1 . 1 . . . . 1 . . . . . 1 Hackware 8 | . . . . . . . 1 . . . . . . . . . . . . 2 . 1 . . . 1 1 . . . . . . . . . 2 . Protection 69 | . 1 1 7 2 . . 5 5 1 . . 1 4 . 1 2 1 . 2 7 2 5 1 5 1 . . 1 2 4 . 4 . . 2 . 1 1 Artifact . | . . . . . . . . . . . . . . . . . . . . . . . . . . . . . . . . . . . . . . . Weapon 156 | 3 14 5 21 2 . 1 7 8 2 2 1 6 8 13 4 1 . 5 5 9 2 5 1 5 . 1 1 1 . . 3 4 . . 2 1 1 12 Energy Gun 28 | 3 1 . 3 . . . 2 2 . 2 . 2 2 3 . . . . 2 3 . . . 2 . . . . . . . . . . . . . 1 Energy Cannon 13 | . . . . . . . . . . . . . . 1 . . . 2 . 2 . 3 1 2 . 1 . . . . . . . . . . . 1 Ballistic Gun 19 | . . . . . . 1 1 1 2 . 1 2 2 1 3 . . . . . . 1 . 1 . . 1 . . . 2 . . . . . . . Ballistic Cannon 20 | . 6 2 11 1 . . . . . . . . . . . . . . . . . . . . . . . . . . . . . . . . . . Launcher 23 | . . . 3 . . . 1 2 . . . 2 1 4 . . . . 2 1 2 1 . . . . . 1 . . 1 2 . . . . . . Special Weapon 16 | . 3 3 3 . . . . . . . . . . . . . . . . . . . . . . . . . . . . . . . 1 1 . 5 Impact Weapon 7 | . 4 . . . . . . . . . . . . . . . . . 1 2 . . . . . . . . . . . . . . . . . . Slashing Weapon 20 | . . . 1 1 . . 3 3 . . . . 3 4 1 1 . 3 . . . . . . . . . . . . . . . . . . . . Piercing Weapon 10 | . . . . . . . . . . . . . . . . . . . . 1 . . . . . . . . . . . 2 . . 1 . 1 5 Special Melee Weapon . | . . . . . . . . . . . . . . . . . . . . . . . . . . . . . . . . . . . . . . . Unidentified Prototypes 38 | . . . 1 1 . . 3 2 . . . . 1 . . . . . 2 10 . 1 . 3 . . . . . 3 . . . . 4 . 3 4 Corrupted Parts 1 | . . . . . . . . . . . . . . . . . . . . . . . . 1 . . . . . . . . . . . . . . System Corruption 8 | . . . . . . . . . . . . . . . . . . . . . . . . 8 . . . . . . . . . . . . . . Parts Lost 80 | . 4 . 5 4 . 2 . 7 . . . . . 2 1 . . . . 7 1 6 2 . . 1 . . 1 . . 6 . . . . 2 29 Power 5 | . 1 . . 1 . . . . . . . . . . . . . . . 1 . . . . . . . . . . . . . . . . . 2 Propulsion 27 | . 2 . 2 1 . 2 . 4 . . . . . 1 . . . . . 2 . 3 . . . . . . . . . . . . . . 1 9 Utility 32 | . 1 . 1 2 . . . 3 . . . . . . 1 . . . . 2 1 3 1 . . . . . 1 . . 3 . . . . . 13 Weapon 15 | . . . 2 . . . . . . . . . . 1 . . . . . 2 . . 1 . . 1 . . . . . 3 . . . . 1 4 Highest Loss Streak 14 | . 1 . 1 3 . 2 . 3 . . . . . 2 1 . . . . 6 1 2 2 . . 1 . . 1 . . 2 . . . . 1 14 To Critical Strikes 2 | . . . . . . . . . . . . . . . . . . . . . . . . . . . . . . . . . . . . . . 2 Average Slot Usage (%) 81 | . 96 100 97 98 100 100 97 94 100 99 100 100 99 96 97 79 75 74 69 72 73 74 84 75 72 72 74 69 69 69 70 67 63 63 63 63 63 51 Engine 4 | . 13 14 11 10 11 11 9 1 6 9 9 9 9 8 . 6 7 7 7 . . . . . . . . . . . . 1 . . . . . . Core 1 | . . . . . . . . 7 2 . . . . . 9 . . . . . . . . 1 . . . . . . . 3 5 5 5 5 1 . Reactor 2 | . . . . . . . . . . . . . . . . . . . . 5 7 6 6 4 6 6 5 5 5 5 5 1 . . . . 2 7 Treads 9 | . 2 . . 1 . 20 22 14 27 27 27 27 26 25 24 19 14 15 15 6 . . 1 2 6 6 2 . . . 3 2 . . . . 1 . Leg 1 | . . . . . . . . 2 . . . . . . . . . . . . . . 11 6 . . 2 5 5 5 1 . . . . 5 2 11 Wheel 4 | . 25 28 21 19 22 1 4 5 . . . . . . . . . . . . . . . . . . . . . . . . 5 5 4 . . . Device 10 | . 3 . 6 11 11 11 2 . . 8 9 9 9 9 9 15 15 14 7 15 15 14 13 13 13 13 12 15 17 17 17 17 10 10 10 15 18 10 Storage 7 | . 14 14 11 11 11 11 9 9 9 9 9 9 9 9 9 7 7 7 7 7 7 6 6 6 6 6 5 5 5 5 5 5 5 5 5 5 4 3 Processor 1 | . . . . . . . . . . . . . . . . . . . . 3 . . . . 5 6 11 6 4 . . 4 5 5 5 5 4 . Hackware 5 | . . . . . . . 1 9 9 9 9 9 9 9 9 7 7 7 6 2 7 10 13 6 . 4 10 11 11 11 11 9 5 5 4 . 6 1 Protection 9 | . 7 14 13 10 11 11 22 17 18 9 9 9 8 9 8 6 7 6 6 6 6 6 5 13 12 7 3 4 5 10 11 7 10 10 9 10 5 . Energy Gun 3 | . 5 . 11 17 . . 1 10 3 16 15 6 4 5 . . . . 1 7 1 . . 1 . . . . . . . . . . . . . . Energy Cannon 1 | . . . . . . . . . . . . . . . . . . . . 3 3 7 7 1 . 4 3 3 5 5 5 1 . . . . . . Ballistic Gun 6 | . . . . . . 10 2 1 14 1 2 15 17 16 18 6 7 7 7 . 5 2 11 16 20 13 11 4 . . 1 4 10 10 5 . . 3 Ballistic Cannon 3 | . 11 26 18 14 22 22 7 . . . . . . . . . . . . . . . . . . . . . . . . 3 5 5 6 10 8 . Slashing Weapon 3 | . . . 1 1 11 . 13 12 9 9 9 4 4 3 8 6 7 6 6 . . . . . . . . . . . . . . . . . . . Naked Turns 6 | . . . . . . . . . . . . . . . . . . . . . . . . . . . . . . . . . . . . . . 6 Heaviest Build 148 | 14 52 52 67 70 70 70 79 72 71 73 73 73 71 70 67 69 68 68 69 73 76 77 77 96 93 93 90 82 89 89 89 133 139 128 129 131 134 148 Greatest Support 166 | 26 40 26 32 26 20 40 63 60 60 60 60 60 65 65 62 68 72 72 72 70 61 57 95 148 148 148 148 148 148 148 166 122 84 84 84 84 145 108 Greatest Overweight (x) 47 | . 1 2 6 6 3 6 4 7 1 1 1 1 1 1 1 1 1 . . 22 1 11 3 1 30 . . . . . . 1 1 1 1 1 1 47 Average Overweight (x) 1 | . . 1 2 2 3 1 2 3 1 1 1 1 . . . . . . . . . 1 . . 11 . . . . . . . 1 1 1 1 . 11 Largest Inventory Capacity 20 | 8 20 20 20 20 20 20 20 20 20 20 20 20 20 20 20 20 20 20 20 20 20 20 20 20 20 20 20 20 20 20 20 20 20 20 20 20 20 20 Average Capacity 19 | 7 12 20 20 20 20 20 20 20 20 20 20 20 20 20 20 20 20 20 20 20 20 20 20 20 20 20 20 20 20 20 20 20 20 20 20 20 20 19 Most Carried 20 | 6 15 20 20 20 20 20 20 20 20 20 20 20 20 20 20 20 20 19 20 20 20 20 18 20 20 20 20 20 16 14 14 20 18 17 20 20 20 20 Average Carried 18 | 4 10 19 19 19 19 18 18 19 20 20 19 19 20 19 19 16 19 18 18 19 19 18 16 18 19 20 17 17 15 12 14 15 16 17 19 20 19 16 Final Capacity 20 | 8 20 20 20 20 20 20 20 20 20 20 20 20 20 20 20 20 20 20 20 20 20 20 20 20 20 20 20 20 20 20 20 20 20 20 20 20 20 5 Final Carried 20 | 6 15 20 20 18 20 19 20 20 20 20 20 20 20 20 20 20 19 16 20 20 19 18 15 20 20 20 20 16 12 14 14 18 17 17 20 20 18 5 Scrap Engine Consumption 187 | . . . . . . . . . . . . . . . . 17 3 . 3 16 3 19 18 21 . 2 3 3 1 4 1 35 1 1 7 1 9 19 Constructs Created 13 | . . . . . . . . . . . . . . . . 3 . . . 2 . 2 . 1 . . . . . . . 3 . . . . . 2 Constructs Modified 67 | . . . . . . . . . . . . . . . . 3 2 . 1 3 3 4 9 9 . . 2 1 . . 3 10 2 . 3 . 5 7 Class Distribution -------------------- 27% | Mutant 17% | Scavenger-Construct 14% | Scavenger-Mutant 13% | Construct 6% | Tank 3% | Hacker-Mutant 3% | Skirmisher 3% | Scavenger-Skirmisher 3% | Commander-Construct 3% | Hacker-Construct Dominant Class ---------------- Mutant | -10/Materials Mutant | -10/Mines Tank | -9/Materials Tank | -9/Mines Mutant | -9/Exiles Skirmisher | -8/Mines Mutant | -8/Materials Scavenger-Mutant | -8/Garrison Scavenger-Mutant | -8/Materials Scavenger-Mutant | -8/Garrison Scavenger-Mutant | -8/Materials Scavenger-Skirmisher | -8/Garrison Mutant | -8/Materials Mutant | -8/Garrison Scavenger-Mutant | -8/Materials Mutant | -7/Factory Construct | -7/Lower Caves Construct | -7/Lower Caves Construct | -7/Zion Construct | -7/Deep Caves Construct | -6/Proximity Caves Hacker-Mutant | -6/Factory Hacker-Tank | -6/Extension Construct | -6/Cetus Scavenger-Construct | -6/Archives Commander-Construct | -6/Hub_04(d) Scavenger-Construct | -5/Factory Scavenger-Construct | -5/Upper Caves Scavenger-Construct | -5/Upper Caves Scavenger-Construct | -5/Zhirov Scavenger-Construct | -4/Proximity Caves Scavenger-Construct | -4/Factory Construct | -4/Upper Caves Construct | -4/Upper Caves Construct | -4/Warlord Commander-Construct | -3/Proximity Caves Hacker-Construct | -3/Research Mutant | -3/Testing Resources | -11 -10 -10 -9 -9 -9 -8 -8 -8 -8 -8 -8 -8 -8 -8 -8 -7 -7 -7 -7 -7 -6 -6 -6 -6 -6 -6 -5 -5 -5 -5 -4 -4 -4 -4 -4 -3 -3 -3 ----------- Run | Scr Mat Min Mat Min Exi Min Mat Gar Mat Gar Mat Gar Mat Gar Mat Fac Low Low Zio Dee Pro Fac Ext Cet Arc Hub Fac Upp Upp Zhi Pro Fac Upp Upp War Pro Res Tes Matter Collected 15648 | 280 575 214 1290 269 10 184 273 655 97 234 30 251 604 690 430 277 30 28 52 309 414 240 353 525 546 131 259 88 149 157 186 1736 412 171 358 440 963 1738 Remotely 816 | . . . . . . . . . . . . . . . . . . . . . . . . . . . . . . . . 299 . . . 22 495 . Salvage Created 18765 | 123 730 306 1585 409 . 292 973 1115 148 358 296 208 912 553 430 297 49 . . 538 191 596 515 1023 316 307 493 12 140 306 296 1619 206 119 . 459 585 2260 Parts 972 | 9 35 18 92 26 . 14 60 65 7 24 12 20 59 31 18 16 2 . . 26 11 28 23 37 26 17 24 2 11 5 17 73 13 8 . 18 19 106 Haulers Intercepted 25 | . 2 . 4 . . . 5 . 1 . . . 6 . . . . . . . . 1 1 . . . 1 . . . . 2 . . . . 1 1 Recyclers Shooed 10 | 1 . . . . . . . . . . . . 1 . 3 . . . . . . . 1 . . . 1 . . . . 2 . . . . . 1 Parts Field Recycled . | . . . . . . . . . . . . . . . . . . . . . . . . . . . . . . . . . . . . . . . Retrieved Matter . | . . . . . . . . . . . . . . . . . . . . . . . . . . . . . . . . . . . . . . . Parts Self-Destructed 76 | . . . . . . . . . . . . . . . . . . . . . 11 . . . . . . 2 7 2 17 . 10 8 . 19 . . Prevented 9 | . . . . . . . . . . . . . . . . . . . . . 1 . . . . . . . 2 . . . . 3 . 3 . . Kills | -11 -10 -10 -9 -9 -9 -8 -8 -8 -8 -8 -8 -8 -8 -8 -8 -7 -7 -7 -7 -7 -6 -6 -6 -6 -6 -6 -5 -5 -5 -5 -4 -4 -4 -4 -4 -3 -3 -3 ------- Run | Scr Mat Min Mat Min Exi Min Mat Gar Mat Gar Mat Gar Mat Gar Mat Fac Low Low Zio Dee Pro Fac Ext Cet Arc Hub Fac Upp Upp Zhi Pro Fac Upp Upp War Pro Res Tes Combat Hostiles Destroyed 372 | . 14 1 32 10 . 7 15 27 2 9 3 16 12 24 3 2 . . . 14 16 9 8 14 . 4 7 4 3 . 5 21 6 7 . 9 16 52 Melee 28 | . 1 . . . . . 11 10 . . 2 . . . 1 2 . . . . . . . . . . . . . . . . . . . . . 1 Guns 128 | . 2 . 6 5 . 1 . 8 2 9 1 9 12 13 2 . . . . 4 1 . 5 11 . 3 2 . . . 3 6 5 4 . . . 14 Cannons 102 | . 10 1 21 5 . 6 . . . . . . . . . . . . . 2 2 6 2 3 . 1 2 2 3 . 2 9 1 3 . 9 8 4 AOE 107 | . . . 5 . . . 4 9 . . . 7 . 11 . . . . . 7 13 3 . . . . 2 2 . . . 3 . . . . 8 33 Classes Destroyed 25 | 2 6 . 3 2 . . 2 2 . . . . 1 . . . 1 . . 1 . . . . . 1 . . 1 . . 1 . . . . . 2 Worker 18 | . 5 2 3 2 . . 1 . . . . . . . . . . . . . . 1 . . . 1 1 . . . . 1 . . . . . 1 Builder 32 | . 2 1 4 3 . . . . . . . . . . . . . . . . . 3 1 . . . 3 . . . . 5 . . . . 1 9 Tunneler 11 | 2 1 2 2 1 . . . . . . 1 . 1 . . . . . . . . . . . . . . . . . . . . . . . 1 . Hauler 25 | . 2 . 4 . . . 5 . 1 . . . 6 . . . . . . . . 1 1 . . . 1 . . . . 2 . . . . 1 1 Recycler 29 | 1 4 3 4 2 . 2 1 . . . 1 . . . 3 2 . . . . . . . . . 1 . . . . . 2 . . . . . 3 Mechanic 3 | . . . . . . . 1 . . . 1 . . . . . . . . . . . . . . . . . . . . . . . . . . 1 Operator 12 | . . . . . . . . . . . . . 1 . . . . . . . . 1 . . 9 . . . . . . 1 . . . . . . Watcher 22 | . 3 . 5 . . . 3 . . . . . 4 . 1 1 . . . . . . 1 1 . . . . . . . 1 . . . . 1 1 Swarmer 94 | . 8 . 3 3 . 4 7 3 . 3 . 15 3 10 . . . . . . 10 3 2 . . 1 . 4 . . . . 4 7 . . . 4 Saboteur 4 | . . . . . . . . . . . . . . . . . . . . . . . . . . . . . . . . . . . . . . 4 Grunt 119 | . 6 1 18 3 . 2 3 12 . 2 2 . 3 13 . . . . . . . 2 3 11 . . 2 . . . 2 6 1 . . 5 5 17 Brawler 8 | . . . 1 . . . . . . . . . . . . . . . . . . . 1 . . . 1 . . . . . . . . . . 5 Duelist 14 | . . . 1 1 . 1 . . . 1 . . . . . . . . . . . . . . . . 1 . . . . . . . . 2 . 7 Protector 4 | . . . . . . . . . . . . . . . . . . . . . . . . . . 1 1 . . . . . . . . . . 2 Researcher 2 | . . . . . . . . . . . . . . . . . . . . . . . . . . . . . . . . . . . . . . 2 Sentry 41 | . . . 9 . . . 3 5 1 2 1 . 5 1 2 1 . . . . . 2 2 . . 1 1 . . . . 3 . . . 1 1 . Demolisher 1 | . . . . 1 . . . . . . . . . . . . . . . . . . . . . . . . . . . . . . . . . . Specialist 1 | . . . . . . . . 1 . . . . . . . . . . . . . . . . . . . . . . . . . . . . . . Hunter 22 | . . . . . . . 2 2 1 . . 1 1 . 1 . . . . . 1 1 . . . . . . 2 . . 3 . . . . 7 . Programmer 38 | . . . . . . . . 4 . 1 . . . . . 1 . . . . . 1 . . . 1 1 . . . 3 8 1 . . 1 3 13 Behemoth 1 | . . . . . . . . . . . . . . . . . . . . . . . . . . . . . . . . 1 . . . . . . Cetus Guard 3 | . . . . . . . . . . . . . . . . . . . . . . . . 3 . . . . . . . . . . . . . . Z-Technician 5 | . . . . . . . . . . . . . . . . . . . . 5 . . . . . . . . . . . . . . . . . . Z-Light 7 | . . . . . . . . . . . . . . . . . . . . 7 . . . . . . . . . . . . . . . . . . Samaritan 2 | . . . . . . . . . . . . . . . . . 1 . . . . . . . . . . . . . . . 1 . . . . . Master Thief 1 | . . . . . . . . . . . . . . . . . . . . . . . . . . . . . 1 . . . . . . . . . Assembled 13 | . . . . 2 . . . . . . . . . . . . . . . 6 5 . . . . . . . . . . . . . . . . . Thug 1 | . . . . . . . . . . . . . . . . . . . . . . . . 1 . . . . . . . . . . . . . . Best Kill Streak 29 | 2 6 5 5 3 . 5 10 4 1 3 4 5 5 8 4 3 . . . 5 4 4 3 6 3 2 9 4 2 . 2 6 4 4 . 7 5 29 Combat Bots Only 25 | . 3 1 3 3 . 4 8 4 1 3 2 5 4 8 2 1 . . . 4 4 3 2 6 . 1 5 4 2 . 2 5 4 4 . 7 5 25 Max Kills in Single Turn 8 | 1 1 1 3 2 . 2 3 2 1 1 1 3 2 2 1 1 1 . . 3 4 3 2 2 1 1 4 2 1 . 1 2 2 1 . 1 2 8 Gunslinging 1 | . . . . . . . . 1 . . . . . 1 . . . . . . . . . 1 . . . . . . . . . . . . . . Exploded 7 | . . . 2 . . . 2 2 . . . 3 . 2 . . . . . 3 4 3 . . . . 2 2 . . . 2 . . . . 2 7 Melee 1 | . 1 . . . . . 1 1 . . 1 . . . 1 1 . . . . . . . . . . . . . . . . . . . . . 1 Uniques/NPCs Destroyed 2 | . . . . . . . . 1 . . . . . . . . . . . 1 . . . . . . . . . . . . . . . . . . AZ-K3N (-8/Garrison) Z-Imprinter (-7/Deep Caves) Combat | -11 -10 -10 -9 -9 -9 -8 -8 -8 -8 -8 -8 -8 -8 -8 -8 -7 -7 -7 -7 -7 -6 -6 -6 -6 -6 -6 -5 -5 -5 -5 -4 -4 -4 -4 -4 -3 -3 -3 -------- Run | Scr Mat Min Mat Min Exi Min Mat Gar Mat Gar Mat Gar Mat Gar Mat Fac Low Low Zio Dee Pro Fac Ext Cet Arc Hub Fac Upp Upp Zhi Pro Fac Upp Upp War Pro Res Tes Damage Taken 25781 | . 939 20 1057 505 . 305 594 1397 117 202 57 254 419 821 59 16 . 5 . 2034 309 893 382 847 185 597 258 210 52 . 309 2854 123 353 . 258 2056 7294 Core 2866 | . 214 . 169 81 . 48 31 174 . 16 . 30 28 61 . . . . . 132 49 149 59 30 . 60 . . . . . 205 . 17 . . 110 1203 Absorbed by Shields 1109 | . . . . . . . . . . 2 . 12 . . . . . . . . . . 101 231 . . . . . . . . . . . 106 657 . Redirected to Shielding 361 | . 12 . 22 . . . . . . . . . . . . . . . . 23 100 164 40 . . . . . . . . . . . . . . . Regen/Repaired (Parts) 3975 | . 96 . 58 . . . . . . . . . . . . . . . 79 302 32 100 176 176 . 43 219 26 31 . 195 1007 7 15 184 22 362 845 Core Remaining (%) 61 | 100 . 14 . . . 25 . . . . . . . . 38 . . . . . 74 . . . . 64 . . . . 100 . . . . 80 . . Volleys Fired 1218 | 5 62 23 100 31 . 14 5 63 7 22 2 22 43 49 12 . . 9 . 41 17 44 47 51 27 10 29 15 13 5 14 122 16 11 6 66 77 138 Largest 3 | 2 2 2 3 3 . 3 1 2 2 2 2 3 3 3 3 . . 1 . 3 2 2 3 3 3 3 3 1 1 1 2 3 3 3 3 2 2 1 Hottest 188 | 90 100 100 151 151 . 98 55 88 58 188 188 188 144 144 86 . . 90 . 174 151 151 141 165 97 167 95 75 50 50 85 123 123 123 123 125 125 100 Shots Fired 2251 | 10 116 36 267 93 . 42 5 82 14 45 5 47 117 97 34 . . 9 . 73 21 70 112 107 73 31 68 15 13 5 25 217 46 30 15 68 111 132 Gun 1151 | 10 28 . 57 57 . 14 2 59 14 45 5 41 117 73 34 . . . . 42 10 7 58 90 73 23 51 1 . . 11 89 30 19 9 . . 82 Cannon 963 | . 80 26 200 36 . 28 . . . . . . . . . . . 9 . 26 4 61 54 17 . 8 17 12 13 5 14 121 16 11 6 68 104 27 Launcher 86 | . . . 7 . . . 3 23 . . . 6 . 24 . . . . . 5 7 2 . . . . . 2 . . . 7 . . . . . . Special 51 | . 8 10 3 . . . . . . . . . . . . . . . . . . . . . . . . . . . . . . . . . 7 23 Kinetic 1390 | . 80 26 200 36 . 42 . 14 14 20 . 28 88 50 34 . . . . . 8 7 58 86 49 13 26 . . . 11 170 46 30 15 66 74 99 Thermal 711 | 10 36 10 60 57 . . 2 45 . 25 5 13 29 23 . . . 9 . 68 6 61 54 19 24 18 42 13 13 5 14 40 . . . . . 10 Explosive 116 | . . . 7 . . . 3 23 . . . 6 . 24 . . . . . 5 7 2 . . . . . 2 . . . 7 . . . . 7 23 Electromagnetic 2 | . . . . . . . . . . . . . . . . . . . . . . . . 2 . . . . . . . . . . . . . . Entropic 32 | . . . . . . . . . . . . . . . . . . . . . . . . . . . . . . . . . . . . 2 30 . Robot Hit Streak 17 | 3 11 7 15 14 . 9 6 9 9 10 10 16 10 12 6 . . . . 7 3 13 14 15 7 16 9 3 8 5 6 12 4 3 3 8 7 17 Robot Miss Streak 8 | 1 8 2 7 7 . 2 . 5 1 1 . 4 2 4 3 . . . . 6 5 5 3 7 4 3 8 1 2 1 3 4 4 5 . 3 4 3 Penetration Max 2 | . . . . . . . . . . 1 . . . . 1 . . . . . . . . 1 . 1 1 . . . . 1 . . 1 . 1 2 Secondary Targets 13 | . 1 . . . . . . 1 . 1 . 1 1 2 1 . . . . 1 . . . 4 . . . . . . . . . . . . . . Max Gunslinging Chain 1 | . 1 . . . . . . 1 . 1 . 1 1 1 1 . . . . 1 . . . 1 . . . . . . . . . . . . . . Shots Hit Robots 1402 | 6 73 15 140 49 . 26 46 82 12 27 10 22 78 55 27 10 2 3 . 44 5 34 67 85 45 17 33 2 10 5 14 115 21 12 1 35 57 117 Core Hits 927 | 4 25 8 64 23 . 15 21 53 3 11 5 18 34 47 10 3 . . . 43 29 26 20 78 26 10 24 4 4 3 7 76 9 6 . 20 46 152 Critical Kills 20 | . 2 . . . . . . . . 1 . . . . . . . . . 1 . . . 2 3 2 1 . . 1 1 2 1 . . 1 1 1 Critical Parts Destroyed 43 | . 6 . . . . . . 1 . . . . . . 1 . . . . . . . . 4 2 1 3 . . . . . . 2 . 2 9 12 Critical Strikes 135 | 1 10 1 12 4 . . 1 5 . 1 . 1 5 1 1 . . . . 7 . . . 6 6 3 4 . . 1 1 19 4 3 . 3 12 23 Burn 20 | 1 2 . 3 4 . . . . . . . 1 4 1 . . . . . 4 . . . . . . . . . . . . . . . . . . Meltdown 5 | . . . . . . . . . . . . . . . . . . . . 1 . . . . . . 1 . . 1 . 2 . . . . . . Destroy 44 | . . . . . . . . 1 . 1 . . . . 1 . . . . . . . . 6 6 3 3 . . . 1 . 1 2 . 1 6 12 Blast 31 | . . 1 9 . . . . . . . . . . . . . . . . . . . . . . . . . . . . 17 3 1 . . . . Smash 8 | . 8 . . . . . . . . . . . . . . . . . . . . . . . . . . . . . . . . . . . . . Sever 15 | . . . . . . . 1 4 . . . . 1 . . . . . . . . . . . . . . . . . . . . . . . 1 8 Impale 4 | . . . . . . . . . . . . . . . . . . . . 2 . . . . . . . . . . . . . . . . . 2 Detonate 8 | . . . . . . . . . . . . . . . . . . . . . . . . . . . . . . . . . . . . 2 5 1 Melee Attacks 314 | . 28 . 7 1 . . 70 72 2 1 8 2 23 1 19 11 2 12 18 6 . . . . . . . . . . . 6 . . 2 . 2 21 Impact 41 | . 28 . . . . . . . . . . . . . . . . . 13 . . . . . . . . . . . . . . . . . . . Slashing 236 | . . . 7 1 . . 70 72 2 1 8 2 23 1 19 11 2 12 5 . . . . . . . . . . . . . . . . . . . Piercing 25 | . . . . . . . . . . . . . . . . . . . . 6 . . . . . . . . . . . 6 . . . . . 13 Entropic 12 | . . . . . . . . . . . . . . . . . . . . . . . . . . . . . . . . . . . 2 . 2 8 Sneak Attacks 71 | . 10 . 3 . . . 13 19 2 . 5 . 2 . . 2 2 . . 6 . . . . . . . . . . . 1 . . . . . 6 Combat Hostiles 4 | . . . . . . . . 2 . . 1 . . . . . . . . . . . . . . . . . . . . 1 . . . . . . Follow-up Attacks 6 | . . . . . . . 4 2 . . . . . . . . . . . . . . . . . . . . . . . . . . . . . . Damage Inflicted 62667 | 70 1792 321 3800 944 . 517 2520 3899 346 727 530 920 1961 2057 720 599 217 104 . 2138 1085 1387 1786 2374 1055 744 1938 515 491 334 567 4546 595 375 69 1571 4261 14792 Guns 18233 | 70 177 . 716 536 . 114 40 810 184 727 94 483 1639 937 482 . . . . 552 18 105 984 1834 1055 468 920 . . . 186 1359 397 254 . . . 3092 Cannons 15045 | . 1018 316 2284 408 . 403 . . . . . . . . . . . . . 307 138 1012 802 369 . 143 167 86 491 334 381 1961 198 121 69 1417 2176 444 Explosions 19875 | . . . 543 . . . 390 1036 . . . 437 . 1120 . . . . . 889 929 270 . 171 . 133 851 429 . . . 1058 . . . 154 1832 9633 Melee 8210 | . 597 . 257 . . . 2090 2053 162 . 436 . 322 . 238 599 217 104 . 390 . . . . . . . . . . . 168 . . . . . 577 Ramming 25 | . . 5 . . . . . . . . . . . . . . . . . . . . . . . . . . . . . . . . . . 16 4 Kinetic 21407 | . 1018 316 2284 408 . 517 . 267 184 334 . 276 863 408 482 . . . . . 18 105 984 1750 727 299 454 . . . 186 2572 595 375 69 1375 1323 3218 Thermal 11791 | 70 177 . 716 536 . . 40 543 . 393 94 207 776 529 . . . . . 859 138 1012 802 443 328 312 633 86 491 334 381 748 . . . 154 502 487 Explosive 18746 | . . . 543 . . . 390 1036 . . . 437 . 1120 . . . . . 889 929 270 . . . . 851 429 . . . 1058 . . . . 1330 9464 Electromagnetic 314 | . . . . . . . . . . . . . . . . . . . . . . . . 181 . 133 . . . . . . . . . . . . Impact 597 | . 597 . . . . . . . . . . . . . . . . . . . . . . . . . . . . . . . . . . . . . Slashing 7757 | . . . 257 . . . 2090 2053 162 . 436 . 322 . 238 599 217 104 . . . . . . . . . . . . . . . . . . 237 1042 Piercing 1135 | . . . . . . . . . . . . . . . . . . . . 390 . . . . . . . . . . . 168 . . . . . 577 Entropic 895 | . . . . . . . . . . . . . . . . . . . . . . . . . . . . . . . . . . . . 42 853 . Highest Corruption 52 | . . . . . . . . 2 2 2 2 2 4 4 4 . . . . . . . 2 12 12 9 . . . . 1 3 3 3 3 3 7 52 Average Corruption 6 | . . . . . . . . 1 2 2 2 2 2 4 4 . . . . . . . 2 7 5 5 . . . . 1 1 3 3 3 2 6 25 Corruption Purged 7 | . . . . . . . . . . . . . . . . . . . . . . . . . 7 . . . . . . . . . . . . . Corruption Blocked 75 | . . . . . . . . . . . . . . . . . . . . . . . . . . . . . . . . 30 . . . . . 45 Effects 597 | . . . . . . . . 34 10 24 9 20 32 42 19 . . . . . . . 15 28 99 13 . . . . 1 20 13 7 . . 14 197 Message Errors 146 | . . . . . . . . 9 3 6 1 4 5 10 5 . . . . . . . 2 3 21 3 . . . . 1 8 5 2 . . 3 55 Matter Fused 141 | . . . . . . . . 5 2 5 3 3 7 12 4 . . . . . . . 3 7 30 4 . . . . . 7 4 1 . . 2 42 Heat Flow Errors 76 | . . . . . . . . 7 1 3 . 2 6 5 3 . . . . . . . 3 4 9 1 . . . . . 1 2 . . . 2 27 Energy Discharges 79 | . . . . . . . . 3 2 5 1 5 4 4 4 . . . . . . . 1 3 10 2 . . . . . 1 . 2 . . 1 31 Parts Rejected 5 | . . . . . . . . 1 . . . 1 . . . . . . . . . . . . 1 . . . . . . . 1 . . . . 1 Data Loss (minor) 65 | . . . . . . . . 2 2 3 2 . 4 6 . . . . . . . . 4 3 12 1 . . . . . 2 1 . . . 4 19 Data Loss (major) 32 | . . . . . . . . 1 . 1 1 2 3 1 2 . . . . . . . . 3 7 1 . . . . . . . . . . 1 9 Misfires 20 | . . . . . . . . 5 . 1 1 2 2 2 . . . . . . . . 1 2 3 1 . . . . . . . . . . . . Alerts 14 | . . . . . . . . 1 . . . . 1 1 1 . . . . . . . 1 1 2 . . . . . . 1 . . . . 1 4 Misdirections 3 | . . . . . . . . . . . . . . . . . . . . . . . . . . . . . . . . . . . . . . 3 Weapon Failures 16 | . . . . . . . . . . . . 1 . 1 . . . . . . . . . 2 4 . . . . . . . . 2 . . . 6 Overload Shots 4 | . . . . . . . . . . . . . . . . . . . . . . . . 1 . 1 . 1 . . . 1 . . . . . . Effects 1 | . . . . . . . . . . . . . . . . . . . . . . . . . . . . 1 . . . . . . . . . . Short Circuit 1 | . . . . . . . . . . . . . . . . . . . . . . . . . . . . 1 . . . . . . . . . . Overflow Damage 2315 | . 306 7 109 8 . 14 341 40 22 . 42 40 17 . . 127 172 20 . 180 . 6 24 . . 35 15 126 43 34 36 . 1 . . 41 51 458 Projectiles 438 | . 40 7 39 8 . 14 . . . . . . . . . . . . . 10 . . 24 . . 3 . 25 43 34 36 . 1 . . 41 26 87 Explosions 442 | . . . 13 . . . 21 15 . . . 40 . . . . . . . 6 . 6 . . . 32 15 101 . . . . . . . . 25 168 Melee 1435 | . 266 . 57 . . . 320 25 22 . 42 . 17 . . 127 172 20 . 164 . . . . . . . . . . . . . . . . . 203 Knockbacks 98 | . 18 4 14 4 . 6 . . . . . . . . . . . . . . . . . . . . . . . . . 9 4 . . 13 15 11 Impact 3 | . 3 . . . . . . . . . . . . . . . . . . . . . . . . . . . . . . . . . . . . . Kinetic 86 | . 15 4 13 4 . 3 . . . . . . . . . . . . . . . . . . . . . . . . . 9 4 . . 11 14 9 Secondary 9 | . . . 1 . . 3 . . . . . . . . . . . . . . . . . . . . . . . . . . . . . 2 1 2 Self-Inflicted Damage 838 | . . 2 34 . . . . . . . . 72 . 87 . . . . . 103 119 34 . . . 101 . 70 . . . 106 . . . . 93 17 Shots 24 | . . . 1 . . . . . . . . 3 . 2 . . . . . 4 6 2 . . . 1 . 1 . . . 2 . . . . 1 1 Rammed 3 | . . 1 . . . . . . . . . . . . . . . . . . . . . . . . . . . . . . . . . . . 2 Targets Rammed 5 | . . 1 . . . . . . . . . . . . . . . . . . . . . . . . . . . . . . . . . . 2 2 Kicked 2 | . . . . . . . . . . . . . . . . . . . . . . . . . . . . . . . . . . . . . 2 . Crushed . | . . . . . . . . . . . . . . . . . . . . . . . . . . . . . . . . . . . . . . . Highest Temperature 640 | 90 300 80 640 121 . 11 24 265 194 238 177 252 295 336 140 . . 230 . 192 36 233 245 246 251 61 219 54 3 5 5 73 349 . . 6 231 271 Average Temperature 87 | 35 86 33 146 33 . 3 12 81 53 83 83 82 99 114 38 . . 105 . 85 19 69 54 49 97 21 69 9 2 5 5 15 121 . . 4 90 93 Received Heat Transfer 3996 | . 186 9 399 39 . 81 90 567 36 81 36 . 108 360 18 . . . . 522 . 273 115 168 . 30 69 . . . . 171 12 . . 10 216 400 Effects 19 | . 2 . 13 . . . . 1 . . . 2 . . . . . . . . . . . . . . . . . . . . 1 . . . . . Shutdowns 1 | . . . 1 . . . . . . . . . . . . . . . . . . . . . . . . . . . . . . . . . . . Energy Bleed 7 | . . . 6 . . . . 1 . . . . . . . . . . . . . . . . . . . . . . . . . . . . . . Interference 6 | . 2 . 2 . . . . . . . . 2 . . . . . . . . . . . . . . . . . . . . . . . . . . Matter Decay 1 | . . . 1 . . . . . . . . . . . . . . . . . . . . . . . . . . . . . . . . . . . Short Circuit 2 | . . . 1 . . . . . . . . . . . . . . . . . . . . . . . . . . . . . 1 . . . . . Damage (minor) 1 | . . . 1 . . . . . . . . . . . . . . . . . . . . . . . . . . . . . . . . . . . Damage (core) 1 | . . . 1 . . . . . . . . . . . . . . . . . . . . . . . . . . . . . . . . . . . Siege Activations . | . . . . . . . . . . . . . . . . . . . . . . . . . . . . . . . . . . . . . . . Robots Corrupted . | . . . . . . . . . . . . . . . . . . . . . . . . . . . . . . . . . . . . . . . Combat Hostiles . | . . . . . . . . . . . . . . . . . . . . . . . . . . . . . . . . . . . . . . . Parts Fried 14 | . 11 . . . . . . . . . . . . . . . . . . . . . . 1 . 1 . . . . . . . . . . . 1 Impact Corruptions 13 | . 12 . . . . 1 . . . . . . . . . . . . . . . . . . . . . . . . . . . . . . . . Robots Melted 6 | . . . . . . . . . . . . . . . . . . . . 1 . . 1 . . . 1 . . 1 . 2 . . . . . . Combat Hostiles 6 | . . . . . . . . . . . . . . . . . . . . 1 . . 1 . . . 1 . . 1 . 2 . . . . . . Parts Melted 39 | 1 3 . 5 4 . . . 2 . . . . . 1 . . . . . 1 . 1 1 1 2 2 . . 4 . 2 9 . . . . . . Heat Transferred 19075 | 272 631 . 1739 1443 . . 74 937 . 444 111 333 1258 740 . . . . . 929 148 1353 1183 661 777 582 1242 150 750 450 500 1317 . . . 126 400 525 Parts Sabotaged . | . . . . . . . . . . . . . . . . . . . . . . . . . . . . . . . . . . . . . . . Parts Stolen 11 | . . . . . . . . . . . . . . . . . . 5 . . . . . . . . . . 4 . . . 2 . . . . . Parts Stripped . | . . . . . . . . . . . . . . . . . . . . . . . . . . . . . . . . . . . . . . . Power Chain Reactions . | . . . . . . . . . . . . . . . . . . . . . . . . . . . . . . . . . . . . . . . Missiles Intercepted . | . . . . . . . . . . . . . . . . . . . . . . . . . . . . . . . . . . . . . . . Latent Energy Used 75 | . . . . . . . . . . . . . . . . . . . . . . . . 75 . . . . . . . . . . . . . . LE Corruption 2 | . . . . . . . . . . . . . . . . . . . . . . . . 2 . . . . . . . . . . . . . . Alert | -11 -10 -10 -9 -9 -9 -8 -8 -8 -8 -8 -8 -8 -8 -8 -8 -7 -7 -7 -7 -7 -6 -6 -6 -6 -6 -6 -5 -5 -5 -5 -4 -4 -4 -4 -4 -3 -3 -3 ------- Run | Scr Mat Min Mat Min Exi Min Mat Gar Mat Gar Mat Gar Mat Gar Mat Fac Low Low Zio Dee Pro Fac Ext Cet Arc Hub Fac Upp Upp Zhi Pro Fac Upp Upp War Pro Res Tes Peak Influence 1453 | 15 167 85 657 320 . 167 205 1453 760 808 439 747 634 866 531 74 . . . . . 138 508 975 710 1270 849 . . . . 597 . . . . 460 1193 Initial 707 | . 9 60 13 210 . . . 91 707 393 393 200 364 66 421 30 . . . . . . 21 268 390 . 619 . . . . 18 . . . . 119 225 Average 319 | 5 62 31 374 165 . 66 102 774 674 541 359 510 108 422 331 28 . . . . . 45 202 601 228 671 624 . . . . 217 . . . . 206 577 Maximum Alert Level 4 | . . . 2 1 . . 1 4 3 3 2 3 2 3 2 . . . . . . . 2 3 3 4 3 . . . . 2 . . . . 2 4 Low Security (%) 45 | 100 100 100 19 53 . 100 82 7 . . . . 84 16 38 100 . . . . . 100 61 . 56 13 . . . . . 62 . . . . 58 . Level 1 15 | . . . 29 46 . . 17 10 . 2 54 23 2 38 16 . . . . . . . 20 15 22 11 1 . . . . 18 . . . . 31 10 Level 2 28 | . . . 50 . . . . 26 41 88 45 67 13 25 45 . . . . . . . 17 63 19 14 53 . . . . 18 . . . . 10 68 Level 3 8 | . . . . . . . . 33 58 8 . 9 . 19 . . . . . . . . . 21 2 41 44 . . . . . . . . . . 19 Level 4 1 | . . . . . . . . 21 . . . . . . . . . . . . . . . . . 18 . . . . . . . . . . . 1 Level 5 . | . . . . . . . . . . . . . . . . . . . . . . . . . . . . . . . . . . . . . . . High Security . | . . . . . . . . . . . . . . . . . . . . . . . . . . . . . . . . . . . . . . . Max Security . | . . . . . . . . . . . . . . . . . . . . . . . . . . . . . . . . . . . . . . . Squads Dispatched 77 | . 4 . 5 . . . 1 . . . . . . . . 3 . . . . . 6 6 . . 8 2 . . . . 13 . . . 1 6 22 Investigation 13 | . 3 . 2 . . . . . . . . . . . . 1 . . . . . . 3 . . . . . . . . 2 . . . . 2 . Extermination 19 | . . . . . . . . . . . . . . . . 1 . . . . . 2 . . . 1 . . . . . 6 . . . . 1 8 Reinforcement 29 | . 1 . 2 . . . 1 . . . . . . . . 1 . . . . . 3 3 . . 5 1 . . . . 5 . . . . 2 5 Assault 14 | . . . 1 . . . . . . . . . . . . . . . . . . . . . . 1 1 . . . . . . . . 1 1 9 Garrison 2 | . . . . . . . . . . . . . . . . . . . . . . 1 . . . 1 . . . . . . . . . . . . Intercept . | . . . . . . . . . . . . . . . . . . . . . . . . . . . . . . . . . . . . . . . Searches Triggered . | . . . . . . . . . . . . . . . . . . . . . . . . . . . . . . . . . . . . . . . Construction Impeded 7 | . . . . . . . . . . . . . . . . . . . . . . . 1 . . 1 . . . . . 2 . . . . 1 2 Haulers Reinforced 3 | . . . . . . . . . . . . . . . . . . . . . . 1 . . . . 1 . . . . . . . . . 1 . Active Scanning Responses . | . . . . . . . . . . . . . . . . . . . . . . . . . . . . . . . . . . . . . . . Cargo Convoy Interrupts . | . . . . . . . . . . . . . . . . . . . . . . . . . . . . . . . . . . . . . . . Stealth | -11 -10 -10 -9 -9 -9 -8 -8 -8 -8 -8 -8 -8 -8 -8 -8 -7 -7 -7 -7 -7 -6 -6 -6 -6 -6 -6 -5 -5 -5 -5 -4 -4 -4 -4 -4 -3 -3 -3 --------- Run | Scr Mat Min Mat Min Exi Min Mat Gar Mat Gar Mat Gar Mat Gar Mat Fac Low Low Zio Dee Pro Fac Ext Cet Arc Hub Fac Upp Upp Zhi Pro Fac Upp Upp War Pro Res Tes Distress Signals 29 | . 1 . 5 1 . . 2 . . . . . 3 . 1 . . . . . . . 4 2 . . . . . . . 1 . . 1 . 2 6 Communications Jammed 40 | . . . . . . . . . . . . . . . . . . . . . . . . . . . . . . . . 1 . . . . . 39 Distress Signals 40 | . . . . . . . . . . . . . . . . . . . . . . . . . . . . . . . . 1 . . . . . 39 Times Spotted 652 | . 29 3 50 13 . 10 22 23 2 8 3 14 20 21 7 9 . 5 . 15 15 14 31 35 12 25 10 4 6 . 5 49 8 10 12 24 27 111 Peak Tracking Total 35 | . 5 2 5 3 . 4 6 5 1 3 1 5 6 7 4 3 . 5 . 5 4 4 5 5 2 5 5 4 4 . 2 4 4 5 11 6 7 35 Tactical Retreats 41 | . 3 1 7 1 . . 1 . . . . 2 3 . . . . . . . . . 5 1 . 1 . . . . . 2 . 2 1 6 1 4 Traps | -11 -10 -10 -9 -9 -9 -8 -8 -8 -8 -8 -8 -8 -8 -8 -8 -7 -7 -7 -7 -7 -6 -6 -6 -6 -6 -6 -5 -5 -5 -5 -4 -4 -4 -4 -4 -3 -3 -3 ------- Run | Scr Mat Min Mat Min Exi Min Mat Gar Mat Gar Mat Gar Mat Gar Mat Fac Low Low Zio Dee Pro Fac Ext Cet Arc Hub Fac Upp Upp Zhi Pro Fac Upp Upp War Pro Res Tes Traps Triggered 20 | . . . . . . . 1 3 . 3 . 1 3 6 . 1 . . . . . . 1 . . . . . . . . . . . . . 1 . Indirectly . | . . . . . . . . . . . . . . . . . . . . . . . . . . . . . . . . . . . . . . . Trap Hack Attempts . | . . . . . . . . . . . . . . . . . . . . . . . . . . . . . . . . . . . . . . . Triggered . | . . . . . . . . . . . . . . . . . . . . . . . . . . . . . . . . . . . . . . . Disarmed . | . . . . . . . . . . . . . . . . . . . . . . . . . . . . . . . . . . . . . . . Reprogrammed . | . . . . . . . . . . . . . . . . . . . . . . . . . . . . . . . . . . . . . . . Reused . | . . . . . . . . . . . . . . . . . . . . . . . . . . . . . . . . . . . . . . . Traps Extracted . | . . . . . . . . . . . . . . . . . . . . . . . . . . . . . . . . . . . . . . . Installed . | . . . . . . . . . . . . . . . . . . . . . . . . . . . . . . . . . . . . . . . Triggered 18 | . . . . . . . . . . . . . . . . . 1 . . . 2 . . . . . . . . . 1 . 1 1 12 . . . Most Traps Carried 3 | . . 3 3 . . . . . . . . . . . . . . . . . . . . . . . . . . . . . . . . . . . Machines | -11 -10 -10 -9 -9 -9 -8 -8 -8 -8 -8 -8 -8 -8 -8 -8 -7 -7 -7 -7 -7 -6 -6 -6 -6 -6 -6 -5 -5 -5 -5 -4 -4 -4 -4 -4 -3 -3 -3 ---------- Run | Scr Mat Min Mat Min Exi Min Mat Gar Mat Gar Mat Gar Mat Gar Mat Fac Low Low Zio Dee Pro Fac Ext Cet Arc Hub Fac Upp Upp Zhi Pro Fac Upp Upp War Pro Res Tes Machines Disabled 70 | . 1 1 5 . . 1 . 5 1 . 1 1 1 1 1 . . . . . . . . 1 4 10 17 . . . . 10 . . . 1 . 8 Max in Single Turn 9 | . 1 . 1 . . 1 . 2 1 . 1 1 1 1 1 . . . . . . . . 1 1 9 6 . . . . 4 . . . 1 . 2 Garrison Access 1 | . . . . . . . . . . . . . . . . . . . . . . . . . . 1 . . . . . . . . . . . . Network Hub 1 | . . . . . . . . . . . . . . . . . . . . . . . . . . 1 . . . . . . . . . . . . Machines Sabotaged . | . . . . . . . . . . . . . . . . . . . . . . . . . . . . . . . . . . . . . . . Overloaded Fab Kills . | . . . . . . . . . . . . . . . . . . . . . . . . . . . . . . . . . . . . . . . Hacking | -11 -10 -10 -9 -9 -9 -8 -8 -8 -8 -8 -8 -8 -8 -8 -8 -7 -7 -7 -7 -7 -6 -6 -6 -6 -6 -6 -5 -5 -5 -5 -4 -4 -4 -4 -4 -3 -3 -3 --------- Run | Scr Mat Min Mat Min Exi Min Mat Gar Mat Gar Mat Gar Mat Gar Mat Fac Low Low Zio Dee Pro Fac Ext Cet Arc Hub Fac Upp Upp Zhi Pro Fac Upp Upp War Pro Res Tes Machines Accessed 95 | . 10 . 13 2 2 . 6 2 2 1 1 1 8 1 4 4 . . 1 . . 4 13 1 . 3 3 . . 4 . 3 . . 2 . 2 2 Terminals 72 | . 7 . 10 2 . . 5 2 . 1 . 1 7 1 4 4 . . . . . 4 13 1 . 2 3 . . . . 2 . . . . 2 1 Fabricators 1 | . . . . . . . . . . . . . . . . . . . . . . . . . . . . . . . . 1 . . . . . . Repair Stations 3 | . 1 . 1 . . . . . . . . . . . . . . . . . . . . . . . . . . . . . . . . . . 1 Recycling Units 4 | . 2 . 2 . . . . . . . . . . . . . . . . . . . . . . . . . . . . . . . . . . . Scanalyzers 1 | . . . . . . . . . 1 . . . . . . . . . . . . . . . . . . . . . . . . . . . . . Garrison Access 5 | . . . . . . . 1 . 1 . 1 . 1 . . . . . . . . . . . . 1 . . . . . . . . . . . . Total Hacks 275 | . 30 . 28 8 2 . 14 3 3 3 2 1 25 2 11 9 . . 4 . . 8 31 1 . 9 16 . . 17 . 15 . . 5 . 19 9 Successful 164 | . 21 . 23 4 2 . 9 2 3 1 1 1 13 . 5 1 . . 4 . . 5 17 . . 2 4 . . 17 . 9 . . 5 . 9 6 Failed 107 | . 8 . 4 4 . . 5 1 . 2 1 . 11 2 6 8 . . . . . 3 13 1 . 7 12 . . . . 6 . . . . 10 3 Catastrophic 13 | . . . 1 . . . . . . . . . . . . 1 . . . . . 1 . 1 . 2 3 . . . . 1 . . . . 3 . Database Lockouts 4 | . 1 . 1 . . . . . . . . . 1 . . . . . . . . . 1 . . . . . . . . . . . . . . . Manual 104 | . 21 . 20 6 1 . 7 . . . . . 11 . 8 3 . . . . . 2 6 1 . . 4 . . . . 1 . . . . 13 . Terminals 221 | . 24 . 24 8 . . 13 3 . 3 . 1 24 2 11 9 . . . . . 8 31 1 . 6 16 . . . . 11 . . . . 19 7 Fabricators 4 | . . . . . . . . . . . . . . . . . . . . . . . . . . . . . . . . 4 . . . . . . Repair Stations 7 | . 3 . 2 . . . . . . . . . . . . . . . . . . . . . . . . . . . . . . . . . . 2 Recycling Units 5 | . 3 . 2 . . . . . . . . . . . . . . . . . . . . . . . . . . . . . . . . . . . Scanalyzers 2 | . . . . . . . . . 2 . . . . . . . . . . . . . . . . . . . . . . . . . . . . . Garrison Access 8 | . . . . . . . 1 . 1 . 2 . 1 . . . . . . . . . . . . 3 . . . . . . . . . . . . Terminal Hacks 121 | . 11 . 12 4 2 . 5 2 . 1 . 1 10 . 4 1 . . 4 . . 4 15 . . 2 4 . . 17 . 6 . . 5 . 7 4 Record 6 | . . . . . 1 . . . . . . . . . . . . . . . . . . . . . . . . 5 . . . . . . . . Part Schematic 10 | . . . . 2 . . . . . . . . . . . . . . 4 . . . . . . . . . . 4 . . . . . . . . Robot Analysis 18 | . 5 . 3 1 . . 1 . . . . . 1 . . . . . . . . . 2 . . 1 . . . 4 . . . . . . . . Prototype ID Bank 23 | . 2 . 1 . . . 4 . . . . . 2 . . 1 . . . . . 1 2 . . . . . . 4 . 1 . . 4 . 1 . Open Door 9 | . . . . . . . . 1 . . . . . . . . . . . . . . 7 . . . . . . . . . . . 1 . . . Branch Access Points 4 | . . . . . . . . . . . . . . . . . . . . . . 1 . . . . 1 . . . . 1 . . . . 1 . Emergency Access Points 1 | . . . . . . . . 1 . . . . . . . . . . . . . . . . . . . . . . . . . . . . . . Terminal Index 4 | . 1 . 1 . . . . . . . . . 1 . . . . . . . . . . . . . . . . . . . . . . . 1 . Garrison Index 1 | . . . . . . . . . . . . . . . . . . . . . . . . . . . . . . . . . . . . . 1 . Alert Level 9 | . . . 1 . . . . . . . . . 2 . 1 . . . . . . . . . . 1 1 . . . . 1 . . . . 1 1 Unreport Threat 11 | . . . 2 . . . . . . . . . 3 . 1 . . . . . . . . . . . 1 . . . . 3 . . . . 1 . Locate Traps 7 | . 1 . . . . . . . . . . . 1 . . . . . . . . . 3 . . . 1 . . . . . . . . . . 1 Transport Status 1 | . . . . . . . . . . . . . . . . . . . . . . 1 . . . . . . . . . . . . . . . . Recall Investigation 1 | . . . 1 . . . . . . . . . . . . . . . . . . . . . . . . . . . . . . . . . . . Recall Reinforcements 1 | . . . . . . . . . . . . . . . . . . . . . . . . . . . . . . . . . . . . . 1 . Hauler Manifests 5 | . 1 . 2 . . . . . . . . . . . . . . . . . . 1 1 . . . . . . . . . . . . . . . Registered Prototypes 1 | . 1 . . . . . . . . . . . . . . . . . . . . . . . . . . . . . . . . . . . . . Zone Layout 5 | . . . 1 1 . . . . . . . . . . 2 . . . . . . . . . . . . . . . . . . . . . . 1 Garrison Registry 1 | . . . . . . . . . . 1 . . . . . . . . . . . . . . . . . . . . . . . . . . . . Patrol Navigation 1 | . . . . . . . . . . . . 1 . . . . . . . . . . . . . . . . . . . . . . . . . . EX-Prototype ID Bank 1 | . . . . . 1 . . . . . . . . . . . . . . . . . . . . . . . . . . . . . . . . . Protovariant Controls 1 | . . . . . . . . . . . . . . . . . . . . . . . . . . . . . . . . . . . . . . 1 Fabricator Hacks 2 | . . . . . . . . . . . . . . . . . . . . . . . . . . . . . . . . 2 . . . . . . Load Schematic 1 | . . . . . . . . . . . . . . . . . . . . . . . . . . . . . . . . 1 . . . . . . Build 1 | . . . . . . . . . . . . . . . . . . . . . . . . . . . . . . . . 1 . . . . . . Repair Station Hacks 7 | . 3 . 2 . . . . . . . . . . . . . . . . . . . . . . . . . . . . . . . . . . 2 Scan Component 4 | . 2 . 1 . . . . . . . . . . . . . . . . . . . . . . . . . . . . . . . . . . 1 Repair 3 | . 1 . 1 . . . . . . . . . . . . . . . . . . . . . . . . . . . . . . . . . . 1 Recycling Unit Hacks . | . . . . . . . . . . . . . . . . . . . . . . . . . . . . . . . . . . . . . . . Scanalyzer 2 | . . . . . . . . . 2 . . . . . . . . . . . . . . . . . . . . . . . . . . . . . Insert Component 1 | . . . . . . . . . 1 . . . . . . . . . . . . . . . . . . . . . . . . . . . . . Analyze 1 | . . . . . . . . . 1 . . . . . . . . . . . . . . . . . . . . . . . . . . . . . Garrison Access Hacks 4 | . . . . . . . 1 . 1 . 1 . 1 . . . . . . . . . . . . . . . . . . . . . . . . . Unlock Access 4 | . . . . . . . 1 . 1 . 1 . 1 . . . . . . . . . . . . . . . . . . . . . . . . . Unauthorized Hacks 28 | . 7 . 9 . . . 3 . . . . . 2 . 1 . . . . . . 1 2 . . . . . . . . 1 . . . . 2 . Terminals 24 | . 5 . 7 . . . 3 . . . . . 2 . 1 . . . . . . 1 2 . . . . . . . . 1 . . . . 2 . Track 3 | . . . 2 . . . . . . . . . . . . . . . . . . . 1 . . . . . . . . . . . . . . . Assimilate 5 | . 3 . . . . . 1 . . . . . . . . . . . . . . . . . . . . . . . . . . . . . 1 . Botnet 9 | . 1 . 4 . . . 1 . . . . . 1 . . . . . . . . 1 . . . . . . . . . . . . . . 1 . Disrupt 2 | . . . . . . . . . . . . . . . . . . . . . . . 1 . . . . . . . . 1 . . . . . . Operators 5 | . 1 . 1 . . . 1 . . . . . 1 . 1 . . . . . . . . . . . . . . . . . . . . . . . Fabricators . | . . . . . . . . . . . . . . . . . . . . . . . . . . . . . . . . . . . . . . . Repair Stations . | . . . . . . . . . . . . . . . . . . . . . . . . . . . . . . . . . . . . . . . Recycling Units 4 | . 2 . 2 . . . . . . . . . . . . . . . . . . . . . . . . . . . . . . . . . . . Tunnel 4 | . 2 . 2 . . . . . . . . . . . . . . . . . . . . . . . . . . . . . . . . . . . Scanalyzers . | . . . . . . . . . . . . . . . . . . . . . . . . . . . . . . . . . . . . . . . Garrison Access . | . . . . . . . . . . . . . . . . . . . . . . . . . . . . . . . . . . . . . . . Data Cores Recovered 1 | . . . . . . . . . . . . . 1 . . . . . . . . . . . . . . . . . . . . . . . . . Used . | . . . . . . . . . . . . . . . . . . . . . . . . . . . . . . . . . . . . . . . Hacking Detections 73 | . 8 . 10 2 . . 6 1 1 1 1 1 7 1 4 4 . . . . . 4 9 2 . 3 3 . . . . 2 . . . . 2 1 Full Trace Events 7 | . . . . . . . . . . . . . 1 . . 1 . . . . . . 2 . . . . . . . . 1 . . . . 2 . Feedback Events . | . . . . . . . . . . . . . . . . . . . . . . . . . . . . . . . . . . . . . . . Feedback Blocked . | . . . . . . . . . . . . . . . . . . . . . . . . . . . . . . . . . . . . . . . Robot Schematics Acquired 4 | . . . . . . . . . . . . . . . . . . . 4 . . . . . . . . . . . . . . . . . . . Robots Built . | . . . . . . . . . . . . . . . . . . . . . . . . . . . . . . . . . . . . . . . Authchips . | . . . . . . . . . . . . . . . . . . . . . . . . . . . . . . . . . . . . . . . Time . | . . . . . . . . . . . . . . . . . . . . . . . . . . . . . . . . . . . . . . . Total Robot Build Rating . | . . . . . . . . . . . . . . . . . . . . . . . . . . . . . . . . . . . . . . . Part Schematics Acquired 25 | . . . . 2 . . . . . . . . . . . . . . 19 . . . . . . . . . . 4 . . . . . . . . Parts Built 1 | . . . . . . . . . . . . . . . . . . . . . . . . . . . . . . . . 1 . . . . . . Authchips . | . . . . . . . . . . . . . . . . . . . . . . . . . . . . . . . . . . . . . . . Time 62 | . . . . . . . . . . . . . . . . . . . . . . . . . . . . . . . . 62 . . . . . . Total Part Build Rating 7 | . . . . . . . . . . . . . . . . . . . . . . . . . . . . . . . . 7 . . . . . . Parts Repaired 3 | . 1 . 1 . . . . . . . . . . . . . . . . . . . . . . . . . . . . . . . . . . 1 Time 56 | . 16 . 26 . . . . . . . . . . . . . . . . . . . . . . . . . . . . . . . . . . 14 Parts Recycled . | . . . . . . . . . . . . . . . . . . . . . . . . . . . . . . . . . . . . . . . Recycled Matter . | . . . . . . . . . . . . . . . . . . . . . . . . . . . . . . . . . . . . . . . Retrieved Matter . | . . . . . . . . . . . . . . . . . . . . . . . . . . . . . . . . . . . . . . . Retrieved Components . | . . . . . . . . . . . . . . . . . . . . . . . . . . . . . . . . . . . . . . . Parts Scanalyzed 1 | . . . . . . . . . 1 . . . . . . . . . . . . . . . . . . . . . . . . . . . . . Part Schematics Acquired . | . . . . . . . . . . . . . . . . . . . . . . . . . . . . . . . . . . . . . . . Parts Damaged . | . . . . . . . . . . . . . . . . . . . . . . . . . . . . . . . . . . . . . . . Bothacking | -11 -10 -10 -9 -9 -9 -8 -8 -8 -8 -8 -8 -8 -8 -8 -8 -7 -7 -7 -7 -7 -6 -6 -6 -6 -6 -6 -5 -5 -5 -5 -4 -4 -4 -4 -4 -3 -3 -3 ------------ Run | Scr Mat Min Mat Min Exi Min Mat Gar Mat Gar Mat Gar Mat Gar Mat Fac Low Low Zio Dee Pro Fac Ext Cet Arc Hub Fac Upp Upp Zhi Pro Fac Upp Upp War Pro Res Tes Used RIF Installer . | . . . . . . . . . . . . . . . . . . . . . . . . . . . . . . . . . . . . . . . Robots Hacked . | . . . . . . . . . . . . . . . . . . . . . . . . . . . . . . . . . . . . . . . Non-combat . | . . . . . . . . . . . . . . . . . . . . . . . . . . . . . . . . . . . . . . . Combat . | . . . . . . . . . . . . . . . . . . . . . . . . . . . . . . . . . . . . . . . Robot Hacks Applied . | . . . . . . . . . . . . . . . . . . . . . . . . . . . . . . . . . . . . . . . Relay Couplers Released 8 | . . . . . . . . 3 . 3 . . . . . . . . . . . . . . . 2 . . . . . . . . . . . . Machine Destruction 2 | . . . . . . . . . . . . . . . . . . . . . . . . . . 2 . . . . . . . . . . . . Programmers 6 | . . . . . . . . 3 . 3 . . . . . . . . . . . . . . . . . . . . . . . . . . . . Fabnet Peak Effective % . | . . . . . . . . . . . . . . . . . . . . . . . . . . . . . . . . . . . . . . . Robots Rewired 12 | . . . . . . . . . . . . . . . . . . . . . . . 7 . . . . . . . . . . . 4 1 . . Allies Hacked 2 | . . . . . . . . . . . . . . . . . . . . . . . . . . . . . . . . . . . . . 2 . Hacks Repelled 1 | . . . . . . . . . . . . . . . . . . . . . . . . . . . . . . . . . . . . . 1 . Allies | -11 -10 -10 -9 -9 -9 -8 -8 -8 -8 -8 -8 -8 -8 -8 -8 -7 -7 -7 -7 -7 -6 -6 -6 -6 -6 -6 -5 -5 -5 -5 -4 -4 -4 -4 -4 -3 -3 -3 -------- Run | Scr Mat Min Mat Min Exi Min Mat Gar Mat Gar Mat Gar Mat Gar Mat Fac Low Low Zio Dee Pro Fac Ext Cet Arc Hub Fac Upp Upp Zhi Pro Fac Upp Upp War Pro Res Tes Total Allies 37 | . 3 3 . . . . 1 1 . . . . . . . . . . . . . . 18 5 . . . . . . . . . . 4 1 1 . Largest Group 7 | . 3 6 3 2 2 2 3 2 1 1 . . . . . . . . . . . . 7 6 6 5 . . . . . . . . 4 4 2 . Highest-Rated Group 617 | . 30 70 30 20 20 20 30 189 10 10 . . . . . . . . . . . . 302 617 617 480 . . . . . . . . 229 229 91 . Highest-Rated Ally 179 | . 10 16 10 10 10 10 10 179 10 10 . . . . . . . . . . . . 159 153 137 96 . . . . . . . . 68 68 65 . Warlord Squad Rendezvous 7 | . . . . . . . . . . . . . . . . . . . . . . . . . . . 2 . . . . 5 . . . . . . Dakka 1 | . . . . . . . . . . . . . . . . . . . . . . . . . . . . . . . . 1 . . . . . . Infantry 1 | . . . . . . . . . . . . . . . . . . . . . . . . . . . . . . . . 1 . . . . . . Muscle 1 | . . . . . . . . . . . . . . . . . . . . . . . . . . . 1 . . . . . . . . . . . Geek 1 | . . . . . . . . . . . . . . . . . . . . . . . . . . . . . . . . 1 . . . . . . Pyro 1 | . . . . . . . . . . . . . . . . . . . . . . . . . . . . . . . . 1 . . . . . . Chimera 1 | . . . . . . . . . . . . . . . . . . . . . . . . . . . . . . . . 1 . . . . . . Ghost 1 | . . . . . . . . . . . . . . . . . . . . . . . . . . . 1 . . . . . . . . . . . Total Orders 57 | . 5 2 19 4 . 2 6 10 2 1 . . . . . . . . . . . . . . 1 1 . . . . . . . . . . 4 . STAY 30 | . 3 1 9 2 . 1 3 5 1 1 . . . . . . . . . . . . . . 1 1 . . . . . . . . . . 2 . FOLLOW 27 | . 2 1 10 2 . 1 3 5 1 . . . . . . . . . . . . . . . . . . . . . . . . . . . 2 . Ally Attacks 453 | . . 12 . . . . . . . . . . . . . . . . . . . . 158 131 16 84 . . . . . . . . 7 34 . 11 Total Damage 13520 | . . 114 . . . . . . . . . . . . . . . . . . . . 3473 3639 471 3486 . . . . . . . . 355 831 . 1151 Kills 93 | . . 1 . . . . . . . . . . . . . . . . . . . . 29 21 4 30 . . . . . . . . 1 3 . 4 Allies Corrupted 2 | . . . . . . . . . . . . . . . . . . . . . . . . . . . . . . . . . . . . . 1 1 Allies Melted 1 | . . . . . . . . . . . . . . . . . . . . . . . . . . . . . . . . . . . 1 . . . Intel | -11 -10 -10 -9 -9 -9 -8 -8 -8 -8 -8 -8 -8 -8 -8 -8 -7 -7 -7 -7 -7 -6 -6 -6 -6 -6 -6 -5 -5 -5 -5 -4 -4 -4 -4 -4 -3 -3 -3 ------- Run | Scr Mat Min Mat Min Exi Min Mat Gar Mat Gar Mat Gar Mat Gar Mat Fac Low Low Zio Dee Pro Fac Ext Cet Arc Hub Fac Upp Upp Zhi Pro Fac Upp Upp War Pro Res Tes Robot Analysis Total 18 | . 5 . 3 1 . . 1 . . . . . 1 . . . . . . . . . 2 . . 1 . . . 4 . . . . . . . . Derelict Logs Recovered 14 | . . 3 . 1 . . . . . . . . . . . . 1 2 . . 2 . . . . . . 1 1 . 1 . 2 . . . . . Drone Launches 1 | . . . . . . . . . . . . . . . . . . . . . . . . . . . . . . . . . . . . . . 1 Drone Recoveries . | . . . . . . . . . . . . . . . . . . . . . . . . . . . . . . . . . . . . . . . Exploration | -11 -10 -10 -9 -9 -9 -8 -8 -8 -8 -8 -8 -8 -8 -8 -8 -7 -7 -7 -7 -7 -6 -6 -6 -6 -6 -6 -5 -5 -5 -5 -4 -4 -4 -4 -4 -3 -3 -3 ------------- Run | Scr Mat Min Mat Min Exi Min Mat Gar Mat Gar Mat Gar Mat Gar Mat Fac Low Low Zio Dee Pro Fac Ext Cet Arc Hub Fac Upp Upp Zhi Pro Fac Upp Upp War Pro Res Tes Turns Passed 55519 | 90 2469 1156 2917 1356 420 925 2809 2692 684 1975 727 1320 2245 2022 884 1326 835 1030 1910 2133 938 1739 1767 990 3638 445 777 1028 446 267 513 3069 603 402 897 886 900 4289 Spaces Moved 24252 | 64 1431 920 1804 942 331 258 912 1157 237 354 254 270 731 479 277 694 475 567 1184 941 546 1107 1053 314 541 239 539 454 285 166 287 1562 389 242 630 529 569 518 Core 335 | 9 . . . . . . . . . . . . . . . . . . . 1 . . . . 203 . . . . . . . . . . . . 122 Treads 9341 | . 105 . . . . 242 337 425 237 354 254 270 731 479 277 694 475 567 1184 343 . . . 137 338 239 344 . . . 214 799 . . . . 296 . Legs 3434 | . . . . . . . . 2 . . . . . . . . . . . 33 . . 838 177 . . 195 454 285 166 73 . . . 75 529 273 334 Wheels 8272 | 55 1326 920 1804 942 331 16 575 730 . . . . . . . . . . . . . . . . . . . . . . . 336 389 242 555 . . 51 Hover 1436 | . . . . . . . . . . . . . . . . . . . . 564 239 407 215 . . . . . . . . . . . . . . 11 Flight 1434 | . . . . . . . . . . . . . . . . . . . . . 307 700 . . . . . . . . . 427 . . . . . . Fastest Speed 50 | 50 90 105 105 110 125 125 120 120 240 240 240 240 155 158 163 130 130 152 152 152 70 99 115 111 111 111 111 139 139 139 139 127 127 127 127 127 90 50 Average Speed 171 | 84 103 105 122 127 125 233 179 196 240 240 240 240 195 208 226 156 151 152 152 180 151 130 129 147 650 111 121 139 139 139 140 157 127 127 127 127 102 659 Slowest Speed 2400 | 100 160 110 170 170 125 240 240 540 240 240 240 240 240 238 243 243 196 152 152 1150 169 805 261 185 1550 111 139 139 139 139 157 184 127 127 127 127 127 2400 Overloaded Moves . | . . . . . . . . . . . . . . . . . . . . . . . . . . . . . . . . . . . . . . . Propulsion Burnouts . | . . . . . . . . . . . . . . . . . . . . . . . . . . . . . . . . . . . . . . . Robots Hopped 1 | . . . . . . . . . . . . . . . . . . . . . . . . . . . . . . . . . . . 1 . . . Cave-ins Triggered 1 | . . . . . . . . . . . . . . . . . . . . . . . . . . . . . . . . 1 . . . . . . Exploration Rate (%) 54 | 4 99 97 93 99 70 37 43 71 13 41 13 32 59 57 30 18 64 66 81 77 69 29 76 68 99 22 17 67 60 60 50 36 61 53 74 74 13 40 Regions Visited 38 Branch Regions 22 Pre-discovered Areas 13 | . 2 2 2 . 1 . . . . . . . . . . . 1 . . . . . . . . . . . . 3 . . 2 . . . . . Known Exits Taken 15 | . . . 1 . . 1 1 . 1 . 1 . 1 . . 1 . 1 . . 1 1 . . . . 1 1 . . 1 1 . . . . 1 . Unknown Exits Taken 19 | 1 1 1 . 1 1 . . . . . . . . . 1 . 1 . 1 1 . . 1 1 1 1 . . 1 1 . . 1 1 1 1 . . Scrap Searched 25 | . . 1 . 1 . . . . . . . . . . . . 2 1 3 . 1 . . . . . . 4 3 . 2 . 3 2 . 2 . . Spaces Dug 239 | . 10 7 11 1 . . 4 . . . . 1 8 . 8 . . 3 4 5 56 5 1 . . . 3 35 2 . 2 49 . . 8 5 2 9 Terrain Destroyed 1577 | . 16 10 61 6 . 2 26 58 1 . 1 39 11 47 12 . . 12 4 90 145 56 27 6 10 190 64 54 10 . 15 228 10 8 9 52 137 160 Melee 48 | . 5 . 2 1 . . 4 . . . . . 8 . 8 . . 3 4 . . . . . . . . . . . . 1 . . 2 . 1 9 Projectile 411 | . 11 10 15 5 . 2 . 1 1 . 1 . 3 . 4 . . 9 . 21 2 30 27 6 10 2 18 18 10 . 15 81 10 8 7 29 53 2 AOE 1115 | . . . 44 . . . 22 57 . . . 39 . 47 . . . . . 69 143 26 . . . 188 46 36 . . . 146 . . . 23 81 148 Terrain Rammed . | . . . . . . . . . . . . . . . . . . . . . . . . . . . . . . . . . . . . . . . Walls Destroyed . | . . . . . . . . . . . . . . . . . . . . . . . . . . . . . . . . . . . . . . . Machines Disabled . | . . . . . . . . . . . . . . . . . . . . . . . . . . . . . . . . . . . . . . . Actions | -11 -10 -10 -9 -9 -9 -8 -8 -8 -8 -8 -8 -8 -8 -8 -8 -7 -7 -7 -7 -7 -6 -6 -6 -6 -6 -6 -5 -5 -5 -5 -4 -4 -4 -4 -4 -3 -3 -3 --------- Run | Scr Mat Min Mat Min Exi Min Mat Gar Mat Gar Mat Gar Mat Gar Mat Fac Low Low Zio Dee Pro Fac Ext Cet Arc Hub Fac Upp Upp Zhi Pro Fac Upp Upp War Pro Res Tes Total 35810 | 86 2236 1050 2299 1023 339 551 2015 1439 338 1443 363 908 1466 1442 494 917 587 715 1267 1290 632 1327 1382 756 602 396 607 837 324 197 372 1949 461 312 716 673 778 1221 Wait 9137 | 4 670 86 297 24 . 276 984 87 84 1050 90 606 636 885 175 183 101 103 48 247 57 151 236 364 27 146 32 363 19 13 69 216 54 60 35 73 98 488 Move 24209 | 63 1430 919 1803 941 330 257 912 1153 237 352 254 269 731 476 276 693 474 566 1183 940 545 1106 1052 313 540 238 538 453 284 165 286 1560 388 241 627 528 568 518 Hop 1 | . . . . . . . . . . . . . . . . . . . . . . . . . . . . . . . . . . . 1 . . . Pick Up 159 | 5 11 6 23 4 4 1 9 10 1 1 4 1 2 2 . 6 2 8 6 5 1 2 . 7 2 . 2 . 3 1 . 7 1 . 8 . 7 7 Fast Attach 129 | 8 4 1 4 1 . . 7 10 . 1 . 1 7 . 3 3 . 2 6 18 2 6 4 3 2 . . . . 7 . 2 1 . 4 . 4 18 Attach 88 | . 4 1 7 4 . 2 4 4 . . 1 . . 1 1 . 2 3 2 5 3 6 5 3 2 . 3 1 2 . . 6 . . 2 . 7 7 Detach 42 | 1 1 . . . . . . 1 . . . . . 1 1 1 2 2 2 4 3 3 4 2 . . 1 . . 1 . 4 . . . . 2 6 Swap 197 | . 19 9 30 9 1 1 13 8 5 5 . 6 12 13 5 5 . . 1 4 1 6 3 4 . 2 2 2 . . 3 17 1 . 2 3 1 4 Drop 240 | . 7 4 28 8 4 . 18 13 2 5 4 1 12 2 2 13 4 10 5 20 3 3 6 9 2 . . 3 3 5 . 7 . . 15 . 10 12 Fire 1218 | 5 62 23 100 31 . 14 5 63 7 22 2 22 43 49 12 . . 9 . 41 17 44 47 51 27 10 29 15 13 5 14 122 16 11 6 66 77 138 Melee 297 | . 28 . 7 1 . . 63 66 2 1 8 2 23 1 19 11 2 12 14 6 . . . . . . . . . . . 6 . . 2 . 2 21 Ram 3 | . . 1 . . . . . . . . . . . . . . . . . . . . . . . . . . . . . . . . . . . 2 Kick 2 | . . . . . . . . . . . . . . . . . . . . . . . . . . . . . . . . . . . . . 2 . Crush . | . . . . . . . . . . . . . . . . . . . . . . . . . . . . . . . . . . . . . . . Escape Stasis 45 | . . . . . . . . 24 . 6 . . . 12 . 2 . . . . . . . . . . . . . . . 1 . . . . . . Rewire 43 | . . . . . . . . . . . . . . . . . . . . . . . 25 . . . . . . . . 1 . . 14 3 . . Trap . | . . . . . . . . . . . . . . . . . . . . . . . . . . . . . . . . . . . . . . . Miscellaneous . | . . . . . . . . . . . . . . . . . . . . . . . . . . . . . . . . . . . . . . . Route ------- -11/Scrapyard -10/Materials (discovered 4 exits: *Mat x3 / [*Min]) -10/Mines (discovered 2 exits: *Mat x2) -9/Materials (discovered 4 exits: *Mat x2 / *Min x2) -9/Mines (discovered 4 exits: *Mat x2 / *Exi / *Zio) -9/Exiles -8/Mines -8/Materials (discovered 2 exits: *Fac / Gar) -8/Garrison (discovered 3 exits: *Mat x3) -8/Materials -8/Garrison (discovered 4 exits: *Mat x4) -8/Materials -8/Garrison -8/Materials -8/Garrison (discovered 3 exits: *Mat x3) -8/Materials -7/Factory (discovered 2 exits: *Fac / *Low) -7/Lower Caves -7/Lower Caves (discovered 2 exits: *Fac / *Zio) -7/Zion (discovered 2 exits: [*Dee] / [*Pro]) -7/Deep Caves -6/Proximity Caves -6/Factory (discovered 6 exits: *Fac x2 / Low x2 / *Ext x2) -6/Extension (discovered 2 exits: *Fac / *Cet) -6/Cetus (discovered 2 exits: *Fac / [*Arc]) -6/Archives (discovered 3 exits: *Fac / *Hub x2) -6/Hub_04(d) -5/Factory (discovered 3 exits: *Fac / *Upp x2) -5/Upper Caves -5/Upper Caves (discovered 2 exits: *Fac / *Zhi) -5/Zhirov -4/Proximity Caves -4/Factory (discovered 3 exits: *Res / *Upp x2) -4/Upper Caves -4/Upper Caves (discovered 2 exits: *Res / *War) -4/Warlord -3/Proximity Caves -3/Research (discovered 3 exits: Arm / *Tes x2) -3/Testing History --------- Turn | Location | Event 21 | -11/Scrapyard | Discovered new exit (range 15) 91 | -11/Scrapyard | Entered Materials 223 | -10/Materials | Discovered new exit (range 16) 306 | -10/Materials | Build established: Mutant 578 | -10/Materials | Discovered new exit (range 15) 990 | -10/Materials | Discovered new exit (range 16) 1047 | -10/Materials | Core integrity fell below 50% 1560 | -10/Materials | Central database locked down 1717 | -10/Materials | Discovered new exit (range 7) 2279 | -10/Materials | Repaired Imp. Light Cannon 2451 | -10/Materials | Core integrity fell below 20% 2560 | -10/Materials | Entered Mines 2560 | -10/Mines | Accompanied by 3 allies 2579 | -10/Mines | Found a hidden stash of uninstalled traps 2596 | -10/Mines | Met a Derelict bent on vengeance 2684 | -10/Mines | Discovered new exit (range 15) 2750 | -10/Mines | Discovered new exit (range 12) 2970 | -10/Mines | Assisted by bots powering up and referring to "LRC-V3" 2996 | -10/Mines | Learned location of Mines (-9) 3008 | -10/Mines | Learned Materials trap positions 3079 | -10/Mines | Learned 8 Materials zone layouts 3083 | -10/Mines | Learned location of Storage (-7) 3260 | -10/Mines | Build established: Commander-Mutant 3605 | -10/Mines | Build established: Mutant 3716 | -10/Mines | Entered Materials 3716 | -9/Materials | Accompanied by 3 allies 3716 | -9/Materials | Evolved 2 slots: Utility x1, Weapon x1 3717 | -9/Materials | Identified exit to Mines 3717 | -9/Materials | Identified exit to Materials 3718 | -9/Materials | Loaded intel: 17 trap records 4028 | -9/Materials | Build established: Tank 4259 | -9/Materials | Central database locked down 4707 | -9/Materials | Discovered exit to Mines (range 11) 5225 | -9/Materials | Build established: Scavenger-Tank 5467 | -9/Materials | Repaired Lgt. Armor Plating 5682 | -9/Materials | Build established: Tank 6336 | -9/Materials | Build established: Mutant 6516 | -9/Materials | First assault squad dispatched 6633 | -9/Materials | Entered Mines 6633 | -9/Mines | Accompanied by 2 allies 6637 | -9/Mines | Discovered exit to Materials (range 18) 6778 | -9/Mines | A Derelict revealed a hidden shortcut to a safe place 6833 | -9/Mines | Build established: Tank 6896 | -9/Mines | Found a damaged Exp. Sensor Array with a note attached 6899 | -9/Mines | Found Prototype Device 6900 | -9/Mines | Identified Exp. Sensor Array 6907 | -9/Mines | Learned Materials emergency access door positions 6945 | -9/Mines | Assembled infested the area 7018 | -9/Mines | Received a Rocket Launcher from a helpful Derelict 7027 | -9/Mines | Deemed a non-threat by the Exiles lab entrance 7346 | -9/Mines | A weapon hastily lodged in a ceiling crevice suddenly fell to the ground 7552 | -9/Mines | Discovered exit to Materials (range 9) 7780 | -9/Mines | Core integrity fell below 50% 7816 | -9/Mines | Lost 3 parts (1p1n1u) 7984 | -9/Mines | Discovered new exit (range 5) 7989 | -9/Mines | Entered Exiles 7989 | -9/Exiles | Accompanied by 2 allies 8021 | -9/Exiles | Met 8R-AWN 8038 | -9/Exiles | Met EX-HEX 8093 | -9/Exiles | Met EX-DEC 8098 | -9/Exiles | Learned location of Zion (-7) 8126 | -9/Exiles | Met EX-BIN 8132 | -9/Exiles | Build established: Mutant 8139 | -9/Exiles | Aligned with FarCom system 8141 | -9/Exiles | Given EX-Vault access code 8171 | -9/Exiles | Opened EX-Vault 8179 | -9/Exiles | Found Firepult 8184 | -9/Exiles | Found Latent Energy Streamer 8190 | -9/Exiles | Found PSU Rigger 8217 | -9/Exiles | Warned to stay clear of 0b10 Research branches 8399 | -9/Exiles | Discovered new exit (range 10) 8409 | -9/Exiles | Stole three prototypes: PSU Rigger, Latent Energy Streamer, Firepult 8409 | -9/Exiles | Entered Mines 8409 | -8/Mines | Accompanied by 2 allies 8587 | -8/Mines | Discovered exit to Materials (range 10) 8708 | -8/Mines | Build established: Skirmisher 9334 | -8/Mines | Entered Materials 9334 | -8/Materials | Accompanied by 2 allies 9334 | -8/Materials | Evolved 2 slots: Propulsion x1, Utility x1 9623 | -8/Materials | Build established: Tank 10178 | -8/Materials | Destroyed 8 combat bots 10199 | -8/Materials | Build established: Mutant 11091 | -8/Materials | Discovered new exit (range 11) 12115 | -8/Materials | Build established: Scavenger-Mutant 12143 | -8/Materials | Identified exit to Garrison 12143 | -8/Materials | Entered Garrison 12143 | -8/Garrison | Accompanied by 1 ally 12364 | -8/Garrison | Triggered checkpoint 12476 | -8/Garrison | Triggered checkpoint 12530 | -8/Garrison | Triggered checkpoint 12864 | -8/Garrison | Triggered checkpoint 12989 | -8/Garrison | Triggered checkpoint 13864 | -8/Garrison | Discovered new exit (range 10) 13931 | -8/Garrison | Attempted to access garrison exit controls, blocked by remote lockdown 14174 | -8/Garrison | Discovered new exit (range 11) 14198 | -8/Garrison | Attempted to access garrison exit controls, blocked by remote lockdown 14276 | -8/Garrison | Lost 3 parts (1n2u) 14297 | -8/Garrison | Rescued AZ-K3N 14364 | -8/Garrison | Destroyed AZ-K3N 14382 | -8/Garrison | Found Prototype Processor 14701 | -8/Garrison | Discovered new exit (range 10) 14835 | -8/Garrison | Entered Materials 14835 | -8/Materials | Accompanied by 1 ally 14892 | -8/Materials | Identified Spectral Analyzer 15519 | -8/Materials | Identified exit to Garrison 15519 | -8/Materials | Entered Garrison 15519 | -8/Garrison | Accompanied by 1 ally 15548 | -8/Garrison | Discovered new exit (range 74) 15548 | -8/Garrison | Discovered new exit (range 94) 15548 | -8/Garrison | Discovered new exit (range 50) 15548 | -8/Garrison | Discovered new exit (range 76) 16816 | -8/Garrison | Triggered checkpoint 17046 | -8/Garrison | Attempted to access garrison exit controls, blocked by remote lockdown 17296 | -8/Garrison | Triggered checkpoint 17494 | -8/Garrison | Entered Materials 18221 | -8/Materials | Identified exit to Garrison 18221 | -8/Materials | Entered Garrison 18529 | -8/Garrison | Triggered checkpoint 18786 | -8/Garrison | Triggered checkpoint 19136 | -8/Garrison | Build established: Scavenger-Skirmisher 19514 | -8/Garrison | Discovered new exit (range 11) 19541 | -8/Garrison | Entered Materials 20444 | -8/Materials | Central database locked down 20685 | -8/Materials | Core integrity fell below 50% 20865 | -8/Materials | Build established: Mutant 21786 | -8/Materials | Identified exit to Garrison 21786 | -8/Materials | Entered Garrison 21978 | -8/Garrison | Triggered checkpoint 23119 | -8/Garrison | Build established: Skirmisher 23189 | -8/Garrison | Discovered new exit (range 15) 23222 | -8/Garrison | Attempted to access garrison exit controls, blocked by remote lockdown 23380 | -8/Garrison | Triggered checkpoint 23392 | -8/Garrison | Triggered checkpoint 23447 | -8/Garrison | Destroyed 8 combat bots 23523 | -8/Garrison | Discovered new exit (range 14) 23556 | -8/Garrison | Attempted to access garrison exit controls, blocked by remote lockdown 23667 | -8/Garrison | Build established: Mutant 23784 | -8/Garrison | Discovered new exit (range 10) 23808 | -8/Garrison | Entered Materials 24324 | -8/Materials | Build established: Scavenger-Mutant 24678 | -8/Materials | Discovered new exit (range 5) 24692 | -8/Materials | Entered Factory 24692 | -7/Factory | Evolved 2 slots: Utility x2 24692 | -7/Factory | Found Scrap Engine 24694 | -7/Factory | FarCom data flow suspended 24889 | -7/Factory | Discovered new exit (range 9) 24959 | -7/Factory | Discovered new exit (range 6) 25073 | -7/Factory | Build established: Mutant 25988 | -7/Factory | Identified exit to Factory 26017 | -7/Factory | Identified exit to Lower Caves 26018 | -7/Factory | Entered Lower Caves 26029 | -7/Lower Caves | Met a Warlord Commander 26030 | -7/Lower Caves | Learned location of Warlord (-4) 26033 | -7/Lower Caves | Found Encrypted Comm Array 26404 | -7/Lower Caves | Build established: Construct 26492 | -7/Lower Caves | Discovered new exit (range 8) 26853 | -7/Lower Caves | Entered another Lower Caves area 27013 | -7/Lower Caves | Discovered exit to Factory (range 3) 27215 | -7/Lower Caves | Learned Factory emergency access door positions 27397 | -7/Lower Caves | Spotted B-75 Beast 27741 | -7/Lower Caves | Identified exit to Zion 27788 | -7/Lower Caves | Spotted 56-EDM(f) 27789 | -7/Lower Caves | Encountered a Master Thief 27789 | -7/Lower Caves | Spotted EJ-7D3(f) 27790 | -7/Lower Caves | Encountered a Master Thief 27790 | -7/Lower Caves | Spotted 6L-1LF(f) 27790 | -7/Lower Caves | Exp. Sensor Array stolen by Master Thief 27790 | -7/Lower Caves | Spotted GD-AD2(f) 27791 | -7/Lower Caves | Encountered a Master Thief 27791 | -7/Lower Caves | Encountered a Master Thief 27791 | -7/Lower Caves | Spotted B2-JN2(f) 27792 | -7/Lower Caves | Encountered a Master Thief 27795 | -7/Lower Caves | Greatsword stolen by Master Thief 27804 | -7/Lower Caves | Imp. Medium Armor Plating stolen by Master Thief 27812 | -7/Lower Caves | Imp. Cooling System stolen by Master Thief 27813 | -7/Lower Caves | Imp. Medium Armor Plating stolen by Master Thief 27883 | -7/Lower Caves | Entered Zion 27925 | -7/Zion | Found GAL Module 27983 | -7/Zion | Discovered new exit (range 13) 28187 | -7/Zion | Found Prototype Launcher 28187 | -7/Zion | Identified Rocket Array 28343 | -7/Zion | Visited the Megawrench Repair Shop 28599 | -7/Zion | Found CR-A16's Pointy Stick 29419 | -7/Zion | Discovered new exit (range 4) 29422 | -7/Zion | Saw the warning signs outside the Deep Caves entrance 29552 | -7/Zion | Build established: Derelict-Construct 29793 | -7/Zion | Entered Deep Caves 30064 | -7/Deep Caves | Attacked by Z-Imprinter 30096 | -7/Deep Caves | Destroyed Z-Imprinter 30109 | -7/Deep Caves | Found Prototype Protection 30109 | -7/Deep Caves | Identified Zio. Weapon Casing 30125 | -7/Deep Caves | Lost 6 parts (1p2n1u2w) 30307 | -7/Deep Caves | Z-Facility disabled 30383 | -7/Deep Caves | Build established: Mutant 30859 | -7/Deep Caves | Found Zio. Weapon Casing 30866 | -7/Deep Caves | Found Zio. Weapon Casing 30873 | -7/Deep Caves | Found Prototype Protection 30873 | -7/Deep Caves | Identified Zio. Heavy Carapace 31257 | -7/Deep Caves | Build established: Construct 31712 | -7/Deep Caves | Discovered new exit (range 6) 31926 | -7/Deep Caves | Entered Proximity Caves 32062 | -6/Proximity Caves | Learned Factory stockpile data 32288 | -6/Proximity Caves | Learned Factory trap positions 32629 | -6/Proximity Caves | Discovered exit to Factory (range 11) 32864 | -6/Proximity Caves | Entered Factory 32864 | -6/Factory | Evolved 2 slots: Propulsion x1, Utility x1 32865 | -6/Factory | Loaded intel: 103 trap records 33111 | -6/Factory | Discovered new exit (range 15) 33167 | -6/Factory | Build established: Mutant 33478 | -6/Factory | Identified exit to Lower Caves 33478 | -6/Factory | Identified exit to Extension 33779 | -6/Factory | Build established: Hacker-Mutant 34073 | -6/Factory | Discovered new exit (range 9) 34357 | -6/Factory | Garrison activated, responded to threat 34603 | -6/Factory | Entered Extension 34932 | -6/Extension | Rescued a captive Derelict 35037 | -6/Extension | Rescued a captive Derelict 35038 | -6/Extension | Rescued a captive Derelict 35125 | -6/Extension | Build established: Hacker-Tank 35170 | -6/Extension | Rescued a captive Derelict 35170 | -6/Extension | Rescued a captive Derelict 35378 | -6/Extension | Disrupted transfer network 35817 | -6/Extension | Build established: Hacker-Construct 35854 | -6/Extension | Rescued A7 35973 | -6/Extension | Rescued a captive Derelict 35978 | -6/Extension | Rescued a captive Derelict 36134 | -6/Extension | Rescued a captive Derelict 36135 | -6/Extension | Rescued a captive Derelict 36160 | -6/Extension | Central database locked down 36186 | -6/Extension | Rescued a captive Derelict 36360 | -6/Extension | Discovered new exit (range 10) 36362 | -6/Extension | Discovered new exit (range 6) 36370 | -6/Extension | Entered Cetus 36370 | -6/Cetus | Accompanied by 5 allies (A7) 36375 | -6/Cetus | Acquired a Cetus Manufacturing Module code from A7 36396 | -6/Cetus | Spotted Cetus Guard 36396 | -6/Cetus | Spotted Cetus Guard 36398 | -6/Cetus | Spotted Cetus Guard 36404 | -6/Cetus | Destroyed Cetus Guard 36405 | -6/Cetus | Allies destroyed Cetus Guard 36406 | -6/Cetus | Spotted Cetus Guard 36417 | -6/Cetus | Allies destroyed Cetus Guard 36425 | -6/Cetus | Destroyed Cetus Guard 36663 | -6/Cetus | Escorted A7 to Cetus Mainframe 36670 | -6/Cetus | Build established: Construct 36686 | -6/Cetus | Discovered new exit (range 16) 36729 | -6/Cetus | Spotted Cetus Guard 36729 | -6/Cetus | Spotted Cetus Guard 36732 | -6/Cetus | Spotted Cetus Guard 36738 | -6/Cetus | Allies destroyed Cetus Guard 36744 | -6/Cetus | Allies destroyed Cetus Guard 36744 | -6/Cetus | Spotted Cetus Guard 36745 | -6/Cetus | Destroyed Cetus Guard 36760 | -6/Cetus | Allies destroyed Cetus Guard 36788 | -6/Cetus | Discovered new exit (range 15) 36797 | -6/Cetus | Met Revision 17 36816 | -6/Cetus | System corruption reached 10% 37093 | -6/Cetus | Started Cetus Manufacturing Module 37114 | -6/Cetus | Build established: Scavenger-Construct 37118 | -6/Cetus | Manufactured an Enhanced Grunt 37143 | -6/Cetus | Manufactured an Enhanced Grunt 37168 | -6/Cetus | Manufactured an Enhanced Grunt 37193 | -6/Cetus | Manufactured an Enhanced Grunt 37218 | -6/Cetus | Manufactured an Enhanced Grunt 37360 | -6/Cetus | Entered Archives 37360 | -6/Archives | Accompanied by 6 allies (A7) 37365 | -6/Archives | Received a hacking code to weaken MAIN.C 37438 | -6/Archives | Discovered new exit (range 23) 37444 | -6/Archives | Discovered new exit (range 22) 37444 | -6/Archives | Discovered new exit (range 18) 40998 | -6/Archives | Entered Hub_04(d) 40998 | -6/Hub_04(d) | Accompanied by 5 allies 40998 | -6/Hub_04(d) | Discovered new exit (range 22) 41087 | -6/Hub_04(d) | Garrison activated, responded to threat 41399 | -6/Hub_04(d) | Network Hub disabled 41436 | -6/Hub_04(d) | Spotted Lightning 41440 | -6/Hub_04(d) | Spotted Lightning 41443 | -6/Hub_04(d) | Entered Factory 41443 | -5/Factory | Evolved 2 slots: Utility x2 41743 | -5/Factory | First assault squad dispatched 41981 | -5/Factory | Discovered new exit (range 11) 42010 | -5/Factory | Identified exit to Factory 42076 | -5/Factory | Joined by Warlord Muscle squad 42126 | -5/Factory | Identified exit to Upper Caves 42155 | -5/Factory | Joined by Warlord Ghost squad 42220 | -5/Factory | Entered Upper Caves 42794 | -5/Upper Caves | Identified exit to Upper Caves 43016 | -5/Upper Caves | Spotted B-75 Beast 43248 | -5/Upper Caves | Entered another Upper Caves area 43276 | -5/Upper Caves | Discovered exit to Factory (range 11) 43483 | -5/Upper Caves | Spotted B-75 Beast 43616 | -5/Upper Caves | Learned Factory trap positions 43627 | -5/Upper Caves | Spotted J8-HVJ(f) 43629 | -5/Upper Caves | Spotted 0B-JLG(f) 43629 | -5/Upper Caves | Spotted KQ-KI0(f) 43629 | -5/Upper Caves | Spotted KK-LZ1(f) 43630 | -5/Upper Caves | Encountered a Master Thief 43630 | -5/Upper Caves | Encountered a Master Thief 43630 | -5/Upper Caves | Encountered a Master Thief 43630 | -5/Upper Caves | Encountered a Master Thief 43632 | -5/Upper Caves | Centrium Medium Armor Plating stolen by Master Thief 43633 | -5/Upper Caves | Centrium Medium Armor Plating stolen by Master Thief 43633 | -5/Upper Caves | Destroyed 0B-JLG(f) 43639 | -5/Upper Caves | Centrium Medium Armor Plating stolen by Master Thief 43687 | -5/Upper Caves | Discovered new exit (range 4) 43694 | -5/Upper Caves | Entered Zhirov 43694 | -5/Zhirov | Discovered new exit (range 3) 43720 | -5/Zhirov | Met Zhirov 43746 | -5/Zhirov | Learned location of Command (-1) 43758 | -5/Zhirov | Zhirov requested help retrieving the SGEMP Prototype 43784 | -5/Zhirov | Found Alien Artifact 43784 | -5/Zhirov | Identified Integrated Reactor 43784 | -5/Zhirov | Installed Integrated Reactor, increased core energy generation (+10) 43902 | -5/Zhirov | Found Alien Artifact 43961 | -5/Zhirov | Entered Proximity Caves 43978 | -4/Proximity Caves | Learned Research garrison access intel 44320 | -4/Proximity Caves | Discovered exit to Factory (range 16) 44474 | -4/Proximity Caves | Entered Factory 44474 | -4/Factory | Evolved 2 slots: Power x1, Utility x1 44475 | -4/Factory | Loaded intel: 111 trap records 44567 | -4/Factory | Fabricated Exp. Optical Array (x1) 44600 | -4/Factory | Spotted B-86 Titan 44933 | -4/Factory | Joined by Warlord Infantry squad 45086 | -4/Factory | Revealed the true nature of CR-A16's Pointy Stick 45089 | -4/Factory | Destroyed B-86 Titan 45277 | -4/Factory | Crushed by falling debris 45335 | -4/Factory | Identified exit to Upper Caves 45354 | -4/Factory | Joined by Warlord Dakka squad 46245 | -4/Factory | Joined by Warlord Pyro squad 46446 | -4/Factory | Joined by Warlord Chimera squad 47120 | -4/Factory | Discovered new exit (range 13) 47210 | -4/Factory | Joined by Warlord Geek squad 47442 | -4/Factory | Build established: Hacker-Construct 47543 | -4/Factory | Entered Upper Caves 47543 | -4/Upper Caves | Spotted B8-6YH(f) 47544 | -4/Upper Caves | Encountered a Master Thief 47546 | -4/Upper Caves | Spotted 6L-5X1(f) 47547 | -4/Upper Caves | Encountered a Master Thief 47550 | -4/Upper Caves | Latent Energy Streamer stolen by Master Thief 47554 | -4/Upper Caves | Alien Artifact stolen by Master Thief 47825 | -4/Upper Caves | Build established: Construct 48094 | -4/Upper Caves | Discovered new exit (range 21) 48132 | -4/Upper Caves | Learned location of Armory (-3) 48146 | -4/Upper Caves | Entered another Upper Caves area 48194 | -4/Upper Caves | Discovered new exit (range 10) 48510 | -4/Upper Caves | Discovered new exit (range 6) 48548 | -4/Upper Caves | Entered Warlord 48599 | -4/Warlord | System corruption cleaned by Quarantine Array 48706 | -4/Warlord | Found Prototype Device 48810 | -4/Warlord | Found Prototype Special Weapon 48810 | -4/Warlord | Identified RU-N14's Throwing Claymores v3 48814 | -4/Warlord | Found RU-N14's Throwing Claymores v3 48864 | -4/Warlord | Met Warlord 48889 | -4/Warlord | Warlord's base attacked by MAIN.C 48968 | -4/Warlord | Found Prototype Device 48968 | -4/Warlord | Identified Minesniffer Drone Bay 49174 | -4/Warlord | Found Prototype Piercing Weapon 49239 | -4/Warlord | Warlord forces counterattacked 49264 | -4/Warlord | Identified Vortex Lance 49286 | -4/Warlord | Found Prototype Hackware 49290 | -4/Warlord | Found Prototype Processor 49293 | -4/Warlord | Found Prototype Device 49293 | -4/Warlord | Identified Exp. Focal Shield 49352 | -4/Warlord | Found RU-N14's Throwing Claymores v3 49412 | -4/Warlord | Build established: Commander-Construct 49425 | -4/Warlord | Discovered new exit (range 12) 49445 | -4/Warlord | Entered Proximity Caves 49445 | -3/Proximity Caves | Accompanied by 4 allies 50153 | -3/Proximity Caves | Attracted the attention of an 0b10 outpost 50228 | -3/Proximity Caves | Destroyed 7 combat bots 50263 | -3/Proximity Caves | Discovered new exit (range 14) 50282 | -3/Proximity Caves | P-80 Master assimilated allied Veteran 8a 50331 | -3/Proximity Caves | Entered Research 50331 | -3/Research | Accompanied by 1 ally 50331 | -3/Research | Evolved 2 slots: Propulsion x1, Utility x1 50332 | -3/Research | Loaded intel: 2 garrison access locations 50468 | -3/Research | Build established: Construct 50625 | -3/Research | Identified Ghost Barrier 50811 | -3/Research | Discovered new exit (range 12) 50922 | -3/Research | Identified exit to Armory 50922 | -3/Research | Identified exit to Testing 50923 | -3/Research | Build established: Hacker-Construct 51081 | -3/Research | First assault squad dispatched 51231 | -3/Research | Entered Testing 51280 | -3/Testing | Repaired Hrd. Heavy Armor Plating 51302 | -3/Testing | Build established: Hacker-Mutant 51494 | -3/Testing | Found Spectral Analyzer 51539 | -3/Testing | System corruption reached 10% 51611 | -3/Testing | Lost 4 parts (2n2u) 51721 | -3/Testing | Protovariant out of control (PP-5TW8FM6OXP) 51721 | -3/Testing | Unleashed a protovariant (PP-5TW8FM6OXP) 51788 | -3/Testing | Lost 3 parts (1p1n1w) 51793 | -3/Testing | Destroyed 13 combat bots 51918 | -3/Testing | PP-5TW8FM6OXP assimilated allied K-01 Serf 51922 | -3/Testing | Spotted PP-5TW8FM6OXP 51943 | -3/Testing | PP-5TW8FM6OXP assimilated allied R-10 Processor 51976 | -3/Testing | PP-5TW8FM6OXP assimilated allied R-10 Processor 51980 | -3/Testing | Core integrity fell below 50% 51981 | -3/Testing | First assault squad dispatched 51982 | -3/Testing | Identified Wardrone Bay 51995 | -3/Testing | PP-5TW8FM6OXP assimilated allied R-10 Processor 52011 | -3/Testing | Lost 7 parts (3n3u1w) 52260 | -3/Testing | Found Prototype Protection 52269 | -3/Testing | Found Prototype Protection 52281 | -3/Testing | Build established: Mutant 55443 | -3/Testing | System corruption reached 30% 55514 | -3/Testing | Released all parts (8) 55517 | -3/Testing | Core integrity fell below 20% 55520 | -3/Testing | Destroyed by P-80 Master with Gamma Rifle Last Messages --------------- 55514_ Released Arm. Scrap Engine. 55514_ Released Wardrone Bay. 55514_ Wardrone Bay crushed and broken. 55514_ Released Vortex Lance. 55514_ Vortex Lance crushed and broken. 55514_ Slammed into P-80 Master. 55514_ P-80 Master resets P-80 Master, system corruption cleaned. 55515_ Acquired 1 matter. 55515_ Slammed into P-80 Master. 55516_ C-30 ARC bursts open, deploying its payload. 55516_ G-73 Enforcer unfolds itself. 55516_ G-67 Veteran unfolds itself. 55516_ M-36 Artificer unfolds itself. 55516_ K-01 Serf collects debris. 55517_ Critical hit (Burn: +50). 55517_ K-01 Serf collects debris. 55518_ System corrupted: Matter fused (-6). 55518_ U-05 Engineer lays Concrete. 55519_ M-36 Artificer repairs K-01 Serf. 55520_ Acquired 6 matter. Map ----- +----------------------------------------------------+ | ????# #######?# ???????????????? | | ???# # # #?# #??????????????? | | ???## # !!### #??????????????? | | ???## +! *% ! #??????????????? | | ???# #% ### # ] #??????????????? | | ???# # ### # #??????????????? | | ???### # ######+##### # ???????????????? | | ????# ?# ## # # #######???????????????? | | ????#?? ?## # ##?????????????????????? | | ??????##?## # % #??????????????????????? | | ?????????## # =##??????????????????????? | | ?????### ## # ##??????????????????????? | | ????####### """"" # ##??????????????????????? | | ????### # # " "" # ##??????????????????????? | | ###### # """ # ##??????????????????????? | | ##################### ##??????????????????????? | | |% %[%!!*= ##??????????????????????? | | = !%! !**% ==% #######?????????????????? | | ##### #| %! ! *[%!%!%|!!### ##????????????????? | | # !%! !=%%!|![!![%### ####??????????????? | | # !|= *! [[==%R[ [### #### ????????????? | | """ # %!! ==%| % ! !%k ??????????? | | """ # %!!| =]==[ % ! %% R ??????????? | | """ # =*! !|%* % u%p % ??????????? | | """ # ! ! p ku ??????????? | | """ # [=%# %### ###g@##+##########??????????? | | #==%=# =[##! g% # ###??????????? | | +###### == #######l[####g #!""""?????????????????? | | % ## ####**=#|gk# "F " ????????????????? | | # ######%%%mp g# ???????????????? | | ########!%pp%p # ?""????????????????? | | ###???##*#/pg% # ???????????????????? | | #######+######???########## ???????????????????? | | ####!!!| ##???########## ???????????????????? | | #?##! ! ##????????????####???????????????????? | | ####|* !""" ##???????????????????????????????????? | | ###!! *""" ##???????????????????????????????????? | | """ ##???????????????????????????????????? | | # """ ##???????????????????????????????????? | | ## """ ##???????????????????????????????????? | | #! ##???????????????????????????????????? | | # # ##???????????????????????????????????? | | #############???????????????????????????????????? | | *#############???????????????????????????????????? | | *#???????????????????????????????????????????????? | | *#???????????????????????????????????????????????? | | #???????????????????????????????????????????????? | | #???????????????????????????????????????????????? | | ##???????????????????????????????????????????????? | | ?????????????????????????????????????????????????? | +----------------------------------------------------+ Best States ------------- Heat Dissipation 103 Coolant Potential 65 Energy Generation 87 Energy Capacity 832 Matter Stores 300 Matter Capacity 300 Sight Range 24 Robot Scan Range 20 Terrain Scan Density 10 Jamming Range 16 Power Amplification 80 Armor Coverage 1200 Resistance: KI 30 Core Shielding 20 Propulsion Shielding 33 Weapon Shielding 100 Evasion (%) 57 Recoil Reduction 4 Salvage Targeting 2 Offensive Hacking 23 Defensive Hacking 20 Item Schematics ----------------- Huge Storage Unit | -9/Mines | Hacked Hcp. Storage Unit | -9/Mines | Hacked Beamcaster | -7/Zion | Free Battle Rifle | -7/Zion | Free Battle Cannon | -7/Zion | Free Flamer | -7/Zion | Free Mak. Hammer | -7/Zion | Archive Fission Core | -7/Zion | Archive Arc Projector | -7/Zion | Archive Proton Cannon | -7/Zion | Archive Mak. Terrain Scan Processor | -7/Zion | Archive Imp. Particle Charger | -7/Zion | Archive Flak Gun | -7/Zion | Archive Enh. Gauss Cannon | -7/Zion | Archive Recoil Nullifier | -7/Zion | Archive Gatling Laser | -7/Zion | Archive Phase Shifter | -7/Zion | Archive Mak. Flight Unit | -7/Zion | Archive Coil Gun | -7/Zion | Archive Lyr. Medium Armor Plating | -7/Zion | Archive Mak. Shrapnel Gun | -7/Zion | Archive Assault Drone Bay | -5/Zhirov | Free Exp. Heat Sink | -5/Zhirov | Free Imp. Arc Thrower | -5/Zhirov | Free Exp. Optical Array | -5/Zhirov | Free Robot Schematics ------------------ G-47 Trooper | -7/Zion | Archive R-06 Scavenger | -7/Zion | Archive O-24 Administrator | -7/Zion | Archive L-61 Swordsman | -7/Zion | Archive Fabricated ------------ Exp. Optical Array | x1 | -4/Factory Alien Tech Used ----------------- Integrated Reactor Achievements -------------- None Challenges ------------ None Game ------ Seed HeavyGravmagStreamer Manual? 0 Play Time 07:08:27 Cumulative 642.7 hours Start 2022.12.20 @ 15:29:27 End 2022.12.21 @ 00:13:16 Sessions 5 Manual Loads 0 Difficulty Rogue Special Mode None Game No. 205 Rogue 201 Adventurer 4 Explorer 0 Win Type - Total 18 Types 8/2/6/0/0/0/1/1/0 Lore% 87 Gallery% 89 Achievement% 77 Wizard Run 0 Options --------- ASCII 1 Keyboard 0 Movement Arrows Keybinds 0 Fullscreen 1 Font 18/SmallcapsGlow Map View 76x50 Tactical HUD 1 Map Filters NONE Filters NONE Steam 1 RUN: 89d03b23-8307-43ef-9188-30053e893056